Department family,Entity,Date,Expense type,Expense area,Supplier,Transaction number,Amount,VAT registration number,
Department for Business Energy and Industrial Strategy,Intellectual Property Office,17/08/2017,Accommodation,People Places & Serv Directorate,Corona Energy,12287107,897.02,Not Applicable,
Department for Business Energy and Industrial Strategy,Intellectual Property Office,29/08/2017,Accommodation,People Places & Serv Directorate,Corona Energy,12303201,-2272.48,Not Applicable,
Department for Business Energy and Industrial Strategy,Intellectual Property Office,29/08/2017,Accommodation,People Places & Serv Directorate,Corona Energy,12303202,2002.26,Not Applicable,
Department for Business Energy and Industrial Strategy,Intellectual Property Office,29/08/2017,Accommodation,People Places & Serv Directorate,Corona Energy,12303383,-6587.75,Not Applicable,
Department for Business Energy and Industrial Strategy,Intellectual Property Office,29/08/2017,Accommodation,People Places & Serv Directorate,Corona Energy,12303384,6846.94,Not Applicable,
Department for Business Energy and Industrial Strategy,Intellectual Property Office,29/08/2017,Accommodation,People Places & Serv Directorate,Corona Energy,12303574,-5327.69,Not Applicable,
Department for Business Energy and Industrial Strategy,Intellectual Property Office,29/08/2017,Accommodation,People Places & Serv Directorate,Corona Energy,12303575,6330.70,Not Applicable,
Department for Business Energy and Industrial Strategy,Intellectual Property Office,29/08/2017,Accommodation,People Places & Serv Directorate,Corona Energy,12303784,-1975.21,Not Applicable,
Department for Business Energy and Industrial Strategy,Intellectual Property Office,29/08/2017,Accommodation,People Places & Serv Directorate,Corona Energy,12303785,5757.34,Not Applicable,
Department for Business Energy and Industrial Strategy,Intellectual Property Office,29/08/2017,Accommodation,People Places & Serv Directorate,Corona Energy,12304051,-668.75,Not Applicable,
Department for Business Energy and Industrial Strategy,Intellectual Property Office,29/08/2017,Accommodation,People Places & Serv Directorate,Corona Energy,12304052,2796.19,Not Applicable,
Department for Business Energy and Industrial Strategy,Intellectual Property Office,29/08/2017,Accommodation,People Places & Serv Directorate,Corona Energy,12304319,-532.58,Not Applicable,
Department for Business Energy and Industrial Strategy,Intellectual Property Office,29/08/2017,Accommodation,People Places & Serv Directorate,Corona Energy,12304320,1828.86,Not Applicable,
Department for Business Energy and Industrial Strategy,Intellectual Property Office,29/08/2017,Accommodation,People Places & Serv Directorate,Corona Energy,12304666,697.46,Not Applicable,
Department for Business Energy and Industrial Strategy,Intellectual Property Office,04/08/2017,Accommodation,People Places & Serv Directorate,Department For Business Innovation & Ski,6.1511E+11,5006.48,Not Applicable,
Department for Business Energy and Industrial Strategy,Intellectual Property Office,04/08/2017,Accommodation,People Places & Serv Directorate,Department For Business Innovation & Ski,6.1511E+11,9871.68,Not Applicable,
Department for Business Energy and Industrial Strategy,Intellectual Property Office,04/08/2017,Accommodation,People Places & Serv Directorate,Department For Business Innovation & Ski,6.1511E+11,7604.99,Not Applicable,
Department for Business Energy and Industrial Strategy,Intellectual Property Office,04/08/2017,Accommodation,People Places & Serv Directorate,Department For Business Innovation & Ski,6.1511E+11,49143.44,Not Applicable,
Department for Business Energy and Industrial Strategy,Intellectual Property Office,04/08/2017,Accommodation,People Places & Serv Directorate,Department For Business Innovation & Ski,6.1511E+11,2403.52,Not Applicable,
Department for Business Energy and Industrial Strategy,Intellectual Property Office,04/08/2017,Accommodation,People Places & Serv Directorate,Department For Business Innovation & Ski,6.1511E+11,1217.84,Not Applicable,
Department for Business Energy and Industrial Strategy,Intellectual Property Office,24/08/2017,Accommodation,People Places & Serv Directorate,Department For Business Innovation & Ski,6.1511E+11,9871.68,Not Applicable,
Department for Business Energy and Industrial Strategy,Intellectual Property Office,24/08/2017,Accommodation,People Places & Serv Directorate,Department For Business Innovation & Ski,6.1511E+11,7604.99,Not Applicable,
Department for Business Energy and Industrial Strategy,Intellectual Property Office,24/08/2017,Accommodation,People Places & Serv Directorate,Department For Business Innovation & Ski,6.1511E+11,49143.44,Not Applicable,
Department for Business Energy and Industrial Strategy,Intellectual Property Office,24/08/2017,Accommodation,People Places & Serv Directorate,Department For Business Innovation & Ski,6.1511E+11,7410.00,Not Applicable,
Department for Business Energy and Industrial Strategy,Intellectual Property Office,29/08/2017,Accommodation,People Places & Serv Directorate,Department For Business Innovation & Ski,6.1511E+11,76828.58,Not Applicable,
Department for Business Energy and Industrial Strategy,Intellectual Property Office,29/08/2017,Accommodation,People Places & Serv Directorate,Department For Business Innovation & Ski,6.1511E+11,14742.93,Not Applicable,
Department for Business Energy and Industrial Strategy,Intellectual Property Office,29/08/2017,Accommodation,People Places & Serv Directorate,Department For Business Innovation & Ski,6.1511E+11,10542.29,Not Applicable,
Department for Business Energy and Industrial Strategy,Intellectual Property Office,29/08/2017,Accommodation,People Places & Serv Directorate,Department For Business Innovation & Ski,6.1511E+11,10542.29,Not Applicable,
Department for Business Energy and Industrial Strategy,Intellectual Property Office,29/08/2017,Accommodation,People Places & Serv Directorate,Department For Business Innovation & Ski,6.1511E+11,10542.29,Not Applicable,
Department for Business Energy and Industrial Strategy,Intellectual Property Office,29/08/2017,Accommodation,People Places & Serv Directorate,Department For Business Innovation & Ski,6.1511E+11,15280.57,Not Applicable,
Department for Business Energy and Industrial Strategy,Intellectual Property Office,30/08/2017,Accommodation,People Places & Serv Directorate,Department For Business Innovation & Ski,6.1511E+11,11213.50,Not Applicable,
Department for Business Energy and Industrial Strategy,Intellectual Property Office,17/08/2017,Accommodation,People Places & Serv Directorate,Dwr Cymru Cyf,8089903130-10AUG,561.03,Not Applicable,
Department for Business Energy and Industrial Strategy,Intellectual Property Office,23/08/2017,Accommodation,People Places & Serv Directorate,Healthy Workstations Ltd,31146,1743.60,Not Applicable,
Department for Business Energy and Industrial Strategy,Intellectual Property Office,04/08/2017,Accommodation,People Places & Serv Directorate,Thomas Waste Management Ltd,179188,672.00,Not Applicable,
Department for Business Energy and Industrial Strategy,Intellectual Property Office,01/08/2017,Accommodation,People Places & Serv Directorate,Total Security Protection Ltd,30499,1159.01,Not Applicable,
Department for Business Energy and Industrial Strategy,Intellectual Property Office,17/08/2017,Accommodation,People Places & Serv Directorate,UK Shared Business Services Ltd,SBS-14749,2315.90,Not Applicable,
Department for Business Energy and Industrial Strategy,Intellectual Property Office,09/08/2017,Accommodation,People Places & Serv Directorate,EDF ENERGY,3139766,28920.80,Not Applicable,
Department for Business Energy and Industrial Strategy,Intellectual Property Office,09/08/2017,Accommodation,People Places & Serv Directorate,EDF ENERGY,3141332,1334.41,Not Applicable,
Department for Business Energy and Industrial Strategy,Intellectual Property Office,01/08/2017,Accommodation,People Places & Serv Directorate,Quality Floorcare Ltd,15572,2760.00,Not Applicable,
Department for Business Energy and Industrial Strategy,Intellectual Property Office,16/08/2017,Accommodation,People Places & Serv Directorate,Quality Floorcare Ltd,15587,1092.00,Not Applicable,
Department for Business Energy and Industrial Strategy,Intellectual Property Office,14/08/2017,Accommodation,People Places & Serv Directorate,Glazing Refurbishment Co.,1701,5877.60,Not Applicable,
Department for Business Energy and Industrial Strategy,Intellectual Property Office,14/08/2017,Accommodation,People Places & Serv Directorate,Magscapes Ltd,INV-2472,5812.56,Not Applicable,
Department for Business Energy and Industrial Strategy,Intellectual Property Office,29/08/2017,Accommodation,People Places & Serv Directorate,D&M Mechanical Engineers Ltd,3046,36000.00,Not Applicable,
Department for Business Energy and Industrial Strategy,Intellectual Property Office,29/08/2017,Accommodation,People Places & Serv Directorate,D&M Mechanical Engineers Ltd,3047,36000.00,Not Applicable,
Department for Business Energy and Industrial Strategy,Intellectual Property Office,14/08/2017,Accommodation,People Places & Serv Directorate,Newey & Eyre,432838158,1669.25,Not Applicable,
Department for Business Energy and Industrial Strategy,Intellectual Property Office,25/08/2017,Accommodation,People Places & Serv Directorate,Newey & Eyre,432934041,9863.40,Not Applicable,
Department for Business Energy and Industrial Strategy,Intellectual Property Office,04/08/2017,Accommodation,People Places & Serv Directorate,ENGIE Services Limited,1800024623,6720.00,Not Applicable,
Department for Business Energy and Industrial Strategy,Intellectual Property Office,04/08/2017,Accommodation,People Places & Serv Directorate,ENGIE Services Limited,1800024624,6720.00,Not Applicable,
Department for Business Energy and Industrial Strategy,Intellectual Property Office,25/08/2017,Accommodation,People Places & Serv Directorate,London Borough of Tower Hamlets,65958270-APR2017,399200.00,Not Applicable,
Department for Business Energy and Industrial Strategy,Intellectual Property Office,22/08/2017,Accommodation,People Places & Serv Directorate,HSM UK Ltd,90886587,530.22,Not Applicable,
Department for Business Energy and Industrial Strategy,Intellectual Property Office,25/08/2017,Accommodation,People Places & Serv Directorate,Infineon Technologies,IRNPT1725,11500.00,Not Applicable,
Department for Business Energy and Industrial Strategy,Intellectual Property Office,01/08/2017,Accommodation,People Places & Serv Directorate,Glasdon UK Ltd,733797,3488.64,Not Applicable,
Department for Business Energy and Industrial Strategy,Intellectual Property Office,10/08/2017,Accommodation,People Places & Serv Directorate,Glasdon UK Ltd,734054,3924.60,Not Applicable,
Department for Business Energy and Industrial Strategy,Intellectual Property Office,30/08/2017,Accommodation,People Places & Serv Directorate,Howdens Joinery Ltd,920-0150210,2371.25,Not Applicable,
Department for Business Energy and Industrial Strategy,Intellectual Property Office,30/08/2017,Accommodation,People Places & Serv Directorate,Howdens Joinery Ltd,920-0150211,2156.03,Not Applicable,
Department for Business Energy and Industrial Strategy,Intellectual Property Office,15/08/2017,Accommodation,People Places & Serv Directorate,Jaguar Building Services Ltd,73500,1267.19,Not Applicable,
Department for Business Energy and Industrial Strategy,Intellectual Property Office,17/08/2017,Accommodation,People Places & Serv Directorate,VCUK TWC Facilities Division,17080246,660.30,Not Applicable,
Department for Business Energy and Industrial Strategy,Intellectual Property Office,31/08/2017,Accommodation,People Places & Serv Directorate,Brookfield Office Property Management Li,2016-32,-46611.79,Not Applicable,
Department for Business Energy and Industrial Strategy,Intellectual Property Office,31/08/2017,Accommodation,People Places & Serv Directorate,Brookfield Office Property Management Li,2017-4,379656.19,Not Applicable,
Department for Business Energy and Industrial Strategy,Intellectual Property Office,14/08/2017,Accommodation,People Places & Serv Directorate,Todd Research Ltd,1626,1156.80,Not Applicable,
Department for Business Energy and Industrial Strategy,Intellectual Property Office,07/08/2017,Information Technology,IT Directorate,Capita Business Services  Ltd,LO10210626,2569.87,Not Applicable,
Department for Business Energy and Industrial Strategy,Intellectual Property Office,07/08/2017,Information Technology,IT Directorate,Capita Business Services  Ltd,LO10210626,5754.68,Not Applicable,
Department for Business Energy and Industrial Strategy,Intellectual Property Office,07/08/2017,Information Technology,IT Directorate,Capita Business Services  Ltd,LO10210626,2502.71,Not Applicable,
Department for Business Energy and Industrial Strategy,Intellectual Property Office,07/08/2017,Information Technology,IT Directorate,Capita Business Services  Ltd,LO10210626,8055.66,Not Applicable,
Department for Business Energy and Industrial Strategy,Intellectual Property Office,07/08/2017,Information Technology,IT Directorate,Capita Business Services  Ltd,LO10210626,2819.52,Not Applicable,
Department for Business Energy and Industrial Strategy,Intellectual Property Office,07/08/2017,Information Technology,IT Directorate,Capita Business Services  Ltd,LO10210626,2569.87,Not Applicable,
Department for Business Energy and Industrial Strategy,Intellectual Property Office,07/08/2017,Information Technology,IT Directorate,Capita Business Services  Ltd,LO10210626,-3037.06,Not Applicable,
Department for Business Energy and Industrial Strategy,Intellectual Property Office,07/08/2017,Information Technology,IT Directorate,Capita Business Services  Ltd,LO10210626,2962.81,Not Applicable,
Department for Business Energy and Industrial Strategy,Intellectual Property Office,11/08/2017,Information Technology,IT Directorate,Capita Business Services  Ltd,LO10212174,5585.86,Not Applicable,
Department for Business Energy and Industrial Strategy,Intellectual Property Office,11/08/2017,Information Technology,IT Directorate,Capita Business Services  Ltd,LO10212174,3145.44,Not Applicable,
Department for Business Energy and Industrial Strategy,Intellectual Property Office,11/08/2017,Information Technology,IT Directorate,Capita Business Services  Ltd,LO10212174,2639.14,Not Applicable,
Department for Business Energy and Industrial Strategy,Intellectual Property Office,11/08/2017,Information Technology,IT Directorate,Capita Business Services  Ltd,LO10212174,2569.87,Not Applicable,
Department for Business Energy and Industrial Strategy,Intellectual Property Office,11/08/2017,Information Technology,IT Directorate,Capita Business Services  Ltd,LO10212174,3931.80,Not Applicable,
Department for Business Energy and Industrial Strategy,Intellectual Property Office,11/08/2017,Information Technology,IT Directorate,Capita Business Services  Ltd,LO10212174,2022.42,Not Applicable,
Department for Business Energy and Industrial Strategy,Intellectual Property Office,11/08/2017,Information Technology,IT Directorate,Capita Business Services  Ltd,LO10212174,5909.53,Not Applicable,
Department for Business Energy and Industrial Strategy,Intellectual Property Office,11/08/2017,Information Technology,IT Directorate,Capita Business Services  Ltd,LO10212174,3017.89,Not Applicable,
Department for Business Energy and Industrial Strategy,Intellectual Property Office,21/08/2017,Information Technology,IT Directorate,Capita Business Services  Ltd,LO10213388,2099.08,Not Applicable,
Department for Business Energy and Industrial Strategy,Intellectual Property Office,21/08/2017,Information Technology,IT Directorate,Capita Business Services  Ltd,LO10213388,2150.02,Not Applicable,
Department for Business Energy and Industrial Strategy,Intellectual Property Office,21/08/2017,Information Technology,IT Directorate,Capita Business Services  Ltd,LO10213388,2639.14,Not Applicable,
Department for Business Energy and Industrial Strategy,Intellectual Property Office,21/08/2017,Information Technology,IT Directorate,Capita Business Services  Ltd,LO10213388,2048.28,Not Applicable,
Department for Business Energy and Industrial Strategy,Intellectual Property Office,21/08/2017,Information Technology,IT Directorate,Capita Business Services  Ltd,LO10213388,2022.42,Not Applicable,
Department for Business Energy and Industrial Strategy,Intellectual Property Office,21/08/2017,Information Technology,IT Directorate,Capita Business Services  Ltd,LO10213388,2989.91,Not Applicable,
Department for Business Energy and Industrial Strategy,Intellectual Property Office,25/08/2017,Information Technology,IT Directorate,Capita Business Services  Ltd,LO10214830,2639.14,Not Applicable,
Department for Business Energy and Industrial Strategy,Intellectual Property Office,25/08/2017,Information Technology,IT Directorate,Capita Business Services  Ltd,LO10214830,2569.87,Not Applicable,
Department for Business Energy and Industrial Strategy,Intellectual Property Office,25/08/2017,Information Technology,IT Directorate,Capita Business Services  Ltd,LO10214830,2022.42,Not Applicable,
Department for Business Energy and Industrial Strategy,Intellectual Property Office,25/08/2017,Information Technology,IT Directorate,Capita Business Services  Ltd,LO10214830,7483.35,Not Applicable,
Department for Business Energy and Industrial Strategy,Intellectual Property Office,25/08/2017,Information Technology,IT Directorate,Capita Business Services  Ltd,LO10214830,3037.06,Not Applicable,
Department for Business Energy and Industrial Strategy,Intellectual Property Office,25/08/2017,Information Technology,IT Directorate,Capita Business Services  Ltd,LO10214830,2529.84,Not Applicable,
Department for Business Energy and Industrial Strategy,Intellectual Property Office,25/08/2017,Information Technology,IT Directorate,Capita Business Services  Ltd,LO10214830,2989.91,Not Applicable,
Department for Business Energy and Industrial Strategy,Intellectual Property Office,25/08/2017,Information Technology,IT Directorate,Capita Business Services  Ltd,LO10214830,2187.86,Not Applicable,
Department for Business Energy and Industrial Strategy,Intellectual Property Office,25/08/2017,Information Technology,IT Directorate,Capita Business Services  Ltd,LO10214830,2022.42,Not Applicable,
Department for Business Energy and Industrial Strategy,Intellectual Property Office,25/08/2017,Information Technology,IT Directorate,Capita Business Services  Ltd,LO10214830,4893.35,Not Applicable,
Department for Business Energy and Industrial Strategy,Intellectual Property Office,25/08/2017,Information Technology,IT Directorate,Capita Business Services  Ltd,LO10214830,3145.44,Not Applicable,
Department for Business Energy and Industrial Strategy,Intellectual Property Office,25/08/2017,Information Technology,IT Directorate,Capita Business Services  Ltd,LO10214830,3239.52,Not Applicable,
Department for Business Energy and Industrial Strategy,Intellectual Property Office,25/08/2017,Information Technology,IT Directorate,Capita Business Services  Ltd,LO10214830,2618.00,Not Applicable,
Department for Business Energy and Industrial Strategy,Intellectual Property Office,16/08/2017,Information Technology,People Places & Serv Directorate,Insight Direct (UK) Ltd,3499331,5259.00,Not Applicable,
Department for Business Energy and Industrial Strategy,Intellectual Property Office,16/08/2017,Information Technology,People Places & Serv Directorate,Insight Direct (UK) Ltd,3499377,9639.00,Not Applicable,
Department for Business Energy and Industrial Strategy,Intellectual Property Office,07/08/2017,Information Technology,IT Directorate,LA International Computer Consultants Lt,LA446742,4232.44,Not Applicable,
Department for Business Energy and Industrial Strategy,Intellectual Property Office,07/08/2017,Information Technology,IT Directorate,LA International Computer Consultants Lt,LA446743,6254.42,Not Applicable,
Department for Business Energy and Industrial Strategy,Intellectual Property Office,11/08/2017,Information Technology,IT Directorate,LA International Computer Consultants Lt,LA448332,2294.06,Not Applicable,
Department for Business Energy and Industrial Strategy,Intellectual Property Office,11/08/2017,Information Technology,IT Directorate,LA International Computer Consultants Lt,LA448333,3146.88,Not Applicable,
Department for Business Energy and Industrial Strategy,Intellectual Property Office,25/08/2017,Information Technology,IT Directorate,LA International Computer Consultants Lt,LA450515,6293.76,Not Applicable,
Department for Business Energy and Industrial Strategy,Intellectual Property Office,17/08/2017,Information Technology,IT Directorate,Trustmarque Solutions Ltd,2009294,-6062.88,Not Applicable,
Department for Business Energy and Industrial Strategy,Intellectual Property Office,22/08/2017,Information Technology,IT Directorate,Trustmarque Solutions Ltd,2252163,1410.04,Not Applicable,
Department for Business Energy and Industrial Strategy,Intellectual Property Office,21/08/2017,Information Technology,People Places & Serv Directorate,CDW Limited,PSINV01951597,4146.55,Not Applicable,
Department for Business Energy and Industrial Strategy,Intellectual Property Office,08/08/2017,Information Technology,IT Directorate,Probrand Ltd,OP-I574073,2146.68,Not Applicable,
Department for Business Energy and Industrial Strategy,Intellectual Property Office,17/08/2017,Information Technology,IT Directorate,Probrand Ltd,OP-I575534,5989.20,Not Applicable,
Department for Business Energy and Industrial Strategy,Intellectual Property Office,22/08/2017,Information Technology,Finance Directorate,Advanced Business Solutions,ARBK-99043546,1254.00,Not Applicable,
Department for Business Energy and Industrial Strategy,Intellectual Property Office,09/08/2017,Information Technology,IT Directorate,Experian Ltd,HEX67000615555,18662.40,Not Applicable,
Department for Business Energy and Industrial Strategy,Intellectual Property Office,30/08/2017,Information Technology,Projects,Experian Ltd,HEX67000616582,34182.00,Not Applicable,
Department for Business Energy and Industrial Strategy,Intellectual Property Office,17/08/2017,Information Technology,Projects,Experian Ltd,HEX67000616675,6000.00,Not Applicable,
Department for Business Energy and Industrial Strategy,Intellectual Property Office,07/08/2017,Information Technology,Projects,SANDHILL CONSULTANTS LTD,IN4059060,7410.00,Not Applicable,
Department for Business Energy and Industrial Strategy,Intellectual Property Office,17/08/2017,Information Technology,IT Directorate,Bytes Software Services Ltd,487095,9489.79,Not Applicable,
Department for Business Energy and Industrial Strategy,Intellectual Property Office,21/08/2017,Information Technology,IT Directorate,Bytes Software Services Ltd,487469,17911.67,Not Applicable,
Department for Business Energy and Industrial Strategy,Intellectual Property Office,29/08/2017,Information Technology,IT Directorate,Bytes Software Services Ltd,488067,750.18,Not Applicable,
Department for Business Energy and Industrial Strategy,Intellectual Property Office,22/08/2017,Information Technology,Patent Directorate,European Patent Office,40271298,124133.46,Not Applicable,
Department for Business Energy and Industrial Strategy,Intellectual Property Office,08/08/2017,Information Technology,Patent Directorate,STN,9340314504,13868.33,Not Applicable,
Department for Business Energy and Industrial Strategy,Intellectual Property Office,22/08/2017,Information Technology,IT Directorate,Verisign,520005289,4669.09,Not Applicable,
Department for Business Energy and Industrial Strategy,Intellectual Property Office,24/08/2017,Information Technology,IT Directorate,Verisign,520005380,4692.42,Not Applicable,
Department for Business Energy and Industrial Strategy,Intellectual Property Office,01/08/2017,Information Technology,Patent Directorate,American Chemical Society,1100322,13361.74,Not Applicable,
Department for Business Energy and Industrial Strategy,Intellectual Property Office,15/08/2017,Information Technology,IT Directorate,PerkinElmer Informatics Inc,INV80081877CR,-3305.00,Not Applicable,
Department for Business Energy and Industrial Strategy,Intellectual Property Office,08/08/2017,Information Technology,IT Directorate,PerkinElmer Informatics Inc,INV80086779CR,-3484.00,Not Applicable,
Department for Business Energy and Industrial Strategy,Intellectual Property Office,14/08/2017,Information Technology,IT Directorate,Responsiv Solutions Limited,RSL0332,14469.41,Not Applicable,
Department for Business Energy and Industrial Strategy,Intellectual Property Office,02/08/2017,Information Technology,IT Directorate,Responsiv Solutions Limited,RSL0333,2664.28,Not Applicable,
Department for Business Energy and Industrial Strategy,Intellectual Property Office,09/08/2017,Information Technology,IT Directorate,Responsiv Solutions Limited,RSL0335,63420.00,Not Applicable,
Department for Business Energy and Industrial Strategy,Intellectual Property Office,30/08/2017,Information Technology,IT Directorate,Responsiv Solutions Limited,RSL0348,42000.00,Not Applicable,
Department for Business Energy and Industrial Strategy,Intellectual Property Office,22/08/2017,Information Technology,IT Directorate,Equal Experts UK Limited,CN-3230,-30000.00,Not Applicable,
Department for Business Energy and Industrial Strategy,Intellectual Property Office,22/08/2017,Information Technology,IT Directorate,Equal Experts UK Limited,INV-3100,15000.00,Not Applicable,
Department for Business Energy and Industrial Strategy,Intellectual Property Office,22/08/2017,Information Technology,IT Directorate,Equal Experts UK Limited,INV-3101,30000.00,Not Applicable,
Department for Business Energy and Industrial Strategy,Intellectual Property Office,25/08/2017,Information Technology,IT Directorate,Equal Experts UK Limited,INV-3231,6000.00,Not Applicable,
Department for Business Energy and Industrial Strategy,Intellectual Property Office,01/08/2017,Information Technology,IT Directorate,Oracle America Inc,43887122,8004.35,Not Applicable,
Department for Business Energy and Industrial Strategy,Intellectual Property Office,07/08/2017,Information Technology,Projects,Top Level Computing,5028,59216.44,Not Applicable,
Department for Business Energy and Industrial Strategy,Intellectual Property Office,30/08/2017,Information Technology,Projects,Pirean Ltd,2920,35335.61,Not Applicable,
Department for Business Energy and Industrial Strategy,Intellectual Property Office,30/08/2017,Information Technology,Projects,Pirean Ltd,2921,55690.88,Not Applicable,
Department for Business Energy and Industrial Strategy,Intellectual Property Office,16/08/2017,Information Technology,IT Directorate,Agile Solutions GB Ltd,INV-3056,6870.00,Not Applicable,
Department for Business Energy and Industrial Strategy,Intellectual Property Office,09/08/2017,Information Technology,Projects,Agile Solutions GB Ltd,INV-3057,7560.00,Not Applicable,
Department for Business Energy and Industrial Strategy,Intellectual Property Office,29/08/2017,Information Technology,Projects,Agile Solutions GB Ltd,INV-3104,14040.00,Not Applicable,
Department for Business Energy and Industrial Strategy,Intellectual Property Office,29/08/2017,Information Technology,Projects,Silver Marlin Associates Ltd,IPO2004,16998.00,Not Applicable,
Department for Business Energy and Industrial Strategy,Intellectual Property Office,14/08/2017,Information Technology,IT Directorate,SQA Consulting Limited,HSR-BB-AC-2098,39240.00,Not Applicable,
Department for Business Energy and Industrial Strategy,Intellectual Property Office,15/08/2017,Information Technology,IT Directorate,SQA Consulting Limited,HSR-BB-AC-2115AA,34020.00,Not Applicable,
Department for Business Energy and Industrial Strategy,Intellectual Property Office,15/08/2017,Information Technology,IT Directorate,SQA Consulting Limited,HSR-BB-AC-2115BB,19200.00,Not Applicable,
Department for Business Energy and Industrial Strategy,Intellectual Property Office,30/08/2017,Land & Buildings Gross,Trade Mark Directorate,Barclaycard Commercial,GPC-27AUG17,26838.10,Not Applicable,
Department for Business Energy and Industrial Strategy,Intellectual Property Office,01/08/2017,Land & Buildings Gross,Trade Mark Directorate,Clarity,TR0074,13384.79,Not Applicable,
Department for Business Energy and Industrial Strategy,Intellectual Property Office,08/08/2017,Land & Buildings Gross,Trade Mark Directorate,Clarity,TR0075,12149.59,Not Applicable,
Department for Business Energy and Industrial Strategy,Intellectual Property Office,21/08/2017,Land & Buildings Gross,Trade Mark Directorate,Clarity,TR0076,25496.53,Not Applicable,
Department for Business Energy and Industrial Strategy,Intellectual Property Office,31/08/2017,Land & Buildings Gross,Trade Mark Directorate,Clarity,TR0077,8427.39,Not Applicable,
Department for Business Energy and Industrial Strategy,Intellectual Property Office,31/08/2017,Land & Buildings Gross,Trade Mark Directorate,Clarity,TR0078,5909.83,Not Applicable,
Department for Business Energy and Industrial Strategy,Intellectual Property Office,04/08/2017,Legal & Hearings,People Places & Serv Directorate,Capital Law LLP,20039961,7027.80,Not Applicable,
Department for Business Energy and Industrial Strategy,Intellectual Property Office,15/08/2017,Legal & Hearings,Patent Directorate,Marten Walsh Cherer Ltd,95784,1096.38,Not Applicable,
Department for Business Energy and Industrial Strategy,Intellectual Property Office,18/08/2017,Legal & Hearings,Patent Directorate,Government Legal Department,443852,801.40,Not Applicable,
Department for Business Energy and Industrial Strategy,Intellectual Property Office,18/08/2017,Legal & Hearings,Trade Mark Directorate,Government Legal Department,443852,2373.92,Not Applicable,
Department for Business Energy and Industrial Strategy,Intellectual Property Office,23/08/2017,Legal & Hearings,Trade Mark Directorate,Government Legal Department,443942,55283.09,Not Applicable,
Department for Business Energy and Industrial Strategy,Intellectual Property Office,18/08/2017,Legal & Hearings,Trade Mark Directorate,Government Legal Department,444116,7472.02,Not Applicable,
Department for Business Energy and Industrial Strategy,Intellectual Property Office,16/08/2017,Marketing & Publicity,Innovation Directorate,Holiday Inn Express,2017015425,2948.00,Not Applicable,
Department for Business Energy and Industrial Strategy,Intellectual Property Office,15/08/2017,Marketing & Publicity,Innovation Directorate,South Wales Chamber of Commerce,119080,600.00,Not Applicable,
Department for Business Energy and Industrial Strategy,Intellectual Property Office,14/08/2017,Marketing & Publicity,Innovation Directorate,Aardman Animations Ltd,34274,820.80,Not Applicable,
Department for Business Energy and Industrial Strategy,Intellectual Property Office,14/08/2017,Marketing & Publicity,Innovation Directorate,GM Business Support Ltd,6017216,1200.00,Not Applicable,
Department for Business Energy and Industrial Strategy,Intellectual Property Office,15/08/2017,Marketing & Publicity,Innovation Directorate,Summerhouse Events,IPOFOE2017,2700.00,Not Applicable,
Department for Business Energy and Industrial Strategy,Intellectual Property Office,10/08/2017,Miscellaneous Expenses General,People Places & Serv Directorate,POSSA,SPORTSDAY2017,3415.00,Not Applicable,
Department for Business Energy and Industrial Strategy,Intellectual Property Office,17/08/2017,Miscellaneous Expenses General,IT Directorate,E Recycling Ltd trading as Euro Recyclin,19983,4800.00,Not Applicable,
Department for Business Energy and Industrial Strategy,Intellectual Property Office,02/08/2017,Miscellaneous Expenses General,People Places & Serv Directorate,RM Gilbert,SB250717,715.24,Not Applicable,
Department for Business Energy and Industrial Strategy,Intellectual Property Office,18/08/2017,Miscellaneous Expenses General,IT Directorate,THE WHOLE PARTNERSHIP LLP,INV-345-PPD-SR-I,4830.48,Not Applicable,
Department for Business Energy and Industrial Strategy,Intellectual Property Office,31/08/2017,Miscellaneous Expenses General,IT Directorate,VCUK TWC Facilities Division,17080649,197.88,Not Applicable,
Department for Business Energy and Industrial Strategy,Intellectual Property Office,31/08/2017,Miscellaneous Expenses General,People Places & Serv Directorate,VCUK TWC Facilities Division,17080649,159.72,Not Applicable,
Department for Business Energy and Industrial Strategy,Intellectual Property Office,31/08/2017,Miscellaneous Expenses General,People Places & Serv Directorate,VCUK TWC Facilities Division,17080649,346.20,Not Applicable,
Department for Business Energy and Industrial Strategy,Intellectual Property Office,31/08/2017,Miscellaneous Expenses General,Patent Directorate,VCUK TWC Facilities Division,17080649,81.30,Not Applicable,
Department for Business Energy and Industrial Strategy,Intellectual Property Office,11/08/2017,Miscellaneous Expenses General,IT Directorate,Vinci Construction UK Ltd,17070313,72.60,Not Applicable,
Department for Business Energy and Industrial Strategy,Intellectual Property Office,11/08/2017,Miscellaneous Expenses General,Trade Mark Directorate,Vinci Construction UK Ltd,17070313,59.28,Not Applicable,
Department for Business Energy and Industrial Strategy,Intellectual Property Office,11/08/2017,Miscellaneous Expenses General,Projects,Vinci Construction UK Ltd,17070313,73.80,Not Applicable,
Department for Business Energy and Industrial Strategy,Intellectual Property Office,11/08/2017,Miscellaneous Expenses General,People Places & Serv Directorate,Vinci Construction UK Ltd,17070313,232.74,Not Applicable,
Department for Business Energy and Industrial Strategy,Intellectual Property Office,11/08/2017,Miscellaneous Expenses General,Patent Directorate,Vinci Construction UK Ltd,17070313,119.04,Not Applicable,
Department for Business Energy and Industrial Strategy,Intellectual Property Office,11/08/2017,Miscellaneous Expenses General,Trade Mark Directorate,Vinci Construction UK Ltd,17070313,23.58,Not Applicable,
Department for Business Energy and Industrial Strategy,Intellectual Property Office,11/08/2017,Miscellaneous Expenses General,Projects,Vinci Construction UK Ltd,17070313,117.48,Not Applicable,
Department for Business Energy and Industrial Strategy,Intellectual Property Office,11/08/2017,Miscellaneous Expenses General,People Places & Serv Directorate,Vinci Construction UK Ltd,17070313,12.00,Not Applicable,
Department for Business Energy and Industrial Strategy,Intellectual Property Office,11/08/2017,Miscellaneous Expenses General,People Places & Serv Directorate,Vinci Construction UK Ltd,17070314,185.64,Not Applicable,
Department for Business Energy and Industrial Strategy,Intellectual Property Office,11/08/2017,Miscellaneous Expenses General,IT Directorate,Vinci Construction UK Ltd,17070314,316.92,Not Applicable,
Department for Business Energy and Industrial Strategy,Intellectual Property Office,11/08/2017,Miscellaneous Expenses General,Trade Mark Directorate,Vinci Construction UK Ltd,17070314,176.04,Not Applicable,
Department for Business Energy and Industrial Strategy,Intellectual Property Office,11/08/2017,Miscellaneous Expenses General,Copyright and Enforcement Directorate,Vinci Construction UK Ltd,17070314,47.40,Not Applicable,
Department for Business Energy and Industrial Strategy,Intellectual Property Office,11/08/2017,Miscellaneous Expenses General,People Places & Serv Directorate,Vinci Construction UK Ltd,17070314,561.24,Not Applicable,
Department for Business Energy and Industrial Strategy,Intellectual Property Office,11/08/2017,Miscellaneous Expenses General,Patent Directorate,Vinci Construction UK Ltd,17070314,1363.80,Not Applicable,
Department for Business Energy and Industrial Strategy,Intellectual Property Office,11/08/2017,Miscellaneous Expenses General,People Places & Serv Directorate,Vinci Construction UK Ltd,17070314,186.60,Not Applicable,
Department for Business Energy and Industrial Strategy,Intellectual Property Office,11/08/2017,Miscellaneous Expenses General,People Places & Serv Directorate,Vinci Construction UK Ltd,17070315,161.64,Not Applicable,
Department for Business Energy and Industrial Strategy,Intellectual Property Office,11/08/2017,Miscellaneous Expenses General,People Places & Serv Directorate,Vinci Construction UK Ltd,17070315,59.94,Not Applicable,
Department for Business Energy and Industrial Strategy,Intellectual Property Office,11/08/2017,Miscellaneous Expenses General,People Places & Serv Directorate,Vinci Construction UK Ltd,17070315,97.20,Not Applicable,
Department for Business Energy and Industrial Strategy,Intellectual Property Office,11/08/2017,Miscellaneous Expenses General,Patent Directorate,Vinci Construction UK Ltd,17070315,115.44,Not Applicable,
Department for Business Energy and Industrial Strategy,Intellectual Property Office,11/08/2017,Miscellaneous Expenses General,IT Directorate,Vinci Construction UK Ltd,17070315,304.80,Not Applicable,
Department for Business Energy and Industrial Strategy,Intellectual Property Office,11/08/2017,Miscellaneous Expenses General,Patent Directorate,Vinci Construction UK Ltd,17070315,1511.76,Not Applicable,
Department for Business Energy and Industrial Strategy,Intellectual Property Office,11/08/2017,Miscellaneous Expenses General,IT Directorate,Vinci Construction UK Ltd,17070315,80.10,Not Applicable,
Department for Business Energy and Industrial Strategy,Intellectual Property Office,11/08/2017,Miscellaneous Expenses General,Trade Mark Directorate,Vinci Construction UK Ltd,17070315,411.60,Not Applicable,
Department for Business Energy and Industrial Strategy,Intellectual Property Office,15/08/2017,Miscellaneous Expenses General,Innovation Directorate,QUEENSLAND UNIVERSITY OF TECHNOLOGY,929176,24000.00,Not Applicable,
Department for Business Energy and Industrial Strategy,Intellectual Property Office,01/08/2017,Miscellaneous Expenses General,Finance Directorate,Geldards LLP,1533120,1643.56,Not Applicable,
Department for Business Energy and Industrial Strategy,Intellectual Property Office,10/08/2017,Miscellaneous Expenses General,People Places & Serv Directorate,Leadin UK Limited,166,1800.00,Not Applicable,
Department for Business Energy and Industrial Strategy,Intellectual Property Office,25/08/2017,Miscellaneous Expenses General,Trade Mark Directorate,Azure Hotel Glasgow Ltd t/a Radisson Blu,12580979,850.00,Not Applicable,
Department for Business Energy and Industrial Strategy,Intellectual Property Office,15/08/2017,Office Machinery,People Places & Serv Directorate,Total Print Finishing Services Ltd,39478,1249.06,Not Applicable,
Department for Business Energy and Industrial Strategy,Intellectual Property Office,18/08/2017,Office Machinery,People Places & Serv Directorate,Total Print Finishing Services Ltd,39510,504.00,Not Applicable,
Department for Business Energy and Industrial Strategy,Intellectual Property Office,15/08/2017,Office Machinery,People Places & Serv Directorate,Midshire Business Systems (Northern) Ltd,341650,1502.47,Not Applicable,
Department for Business Energy and Industrial Strategy,Intellectual Property Office,23/08/2017,Office Machinery,People Places & Serv Directorate,Siemens Financial Services Limited,244-17-0273277,2088.00,Not Applicable,
Department for Business Energy and Industrial Strategy,Intellectual Property Office,07/08/2017,Office Supplies,Finance Directorate,Banner Group Limited,9227336,2135.33,Not Applicable,
Department for Business Energy and Industrial Strategy,Intellectual Property Office,04/08/2017,Office Supplies,Patent Directorate,British Library,139789213,834.39,Not Applicable,
Department for Business Energy and Industrial Strategy,Intellectual Property Office,03/08/2017,Office Supplies,Finance Directorate,Antalis,7001261,681.42,Not Applicable,
Department for Business Energy and Industrial Strategy,Intellectual Property Office,09/08/2017,Office Supplies,Finance Directorate,Antalis,7030633,2448.40,Not Applicable,
Department for Business Energy and Industrial Strategy,Intellectual Property Office,09/08/2017,Office Supplies,People Places & Serv Directorate,Antalis,7031475,532.44,Not Applicable,
Department for Business Energy and Industrial Strategy,Intellectual Property Office,09/08/2017,Office Supplies,Finance Directorate,Antalis,7034781,681.42,Not Applicable,
Department for Business Energy and Industrial Strategy,Intellectual Property Office,14/08/2017,Office Supplies,People Places & Serv Directorate,Antalis,7038587,869.82,Not Applicable,
Department for Business Energy and Industrial Strategy,Intellectual Property Office,22/08/2017,Office Supplies,Finance Directorate,Antalis,7058284,681.42,Not Applicable,
Department for Business Energy and Industrial Strategy,Intellectual Property Office,30/08/2017,Office Supplies,Finance Directorate,Antalis,70839999,681.42,Not Applicable,
Department for Business Energy and Industrial Strategy,Intellectual Property Office,31/08/2017,Office Supplies,People Places & Serv Directorate,VCUK TWC Facilities Division,17080649,33.60,Not Applicable,
Department for Business Energy and Industrial Strategy,Intellectual Property Office,11/08/2017,Office Supplies,People Places & Serv Directorate,Vinci Construction UK Ltd,17070313,30.24,Not Applicable,
Department for Business Energy and Industrial Strategy,Intellectual Property Office,11/08/2017,Office Supplies,People Places & Serv Directorate,Vinci Construction UK Ltd,17070314,31.92,Not Applicable,
Department for Business Energy and Industrial Strategy,Intellectual Property Office,11/08/2017,Office Supplies,People Places & Serv Directorate,Vinci Construction UK Ltd,17070315,40.32,Not Applicable,
Department for Business Energy and Industrial Strategy,Intellectual Property Office,07/08/2017,Office Supplies,Finance Directorate,Blake Envelopes,SI0000516385,2793.60,Not Applicable,
Department for Business Energy and Industrial Strategy,Intellectual Property Office,21/08/2017,Other FA at Cost,IT Directorate,CDW Limited,PSINV01947421,11062.09,Not Applicable,
Department for Business Energy and Industrial Strategy,Intellectual Property Office,01/08/2017,Pay Costs,People Places & Serv Directorate,Acorn Recruitment Ltd,846746,639.38,Not Applicable,
Department for Business Energy and Industrial Strategy,Intellectual Property Office,01/08/2017,Pay Costs,People Places & Serv Directorate,Acorn Recruitment Ltd,846747,536.58,Not Applicable,
Department for Business Energy and Industrial Strategy,Intellectual Property Office,09/08/2017,Pay Costs,People Places & Serv Directorate,Acorn Recruitment Ltd,847493,646.40,Not Applicable,
Department for Business Energy and Industrial Strategy,Intellectual Property Office,09/08/2017,Pay Costs,People Places & Serv Directorate,Acorn Recruitment Ltd,847494,640.73,Not Applicable,
Department for Business Energy and Industrial Strategy,Intellectual Property Office,22/08/2017,Pay Costs,People Places & Serv Directorate,Acorn Recruitment Ltd,848258,656.10,Not Applicable,
Department for Business Energy and Industrial Strategy,Intellectual Property Office,22/08/2017,Pay Costs,People Places & Serv Directorate,Acorn Recruitment Ltd,848259,627.68,Not Applicable,
Department for Business Energy and Industrial Strategy,Intellectual Property Office,22/08/2017,Pay Costs,People Places & Serv Directorate,Acorn Recruitment Ltd,848993,622.67,Not Applicable,
Department for Business Energy and Industrial Strategy,Intellectual Property Office,22/08/2017,Pay Costs,People Places & Serv Directorate,Acorn Recruitment Ltd,848994,509.84,Not Applicable,
Department for Business Energy and Industrial Strategy,Intellectual Property Office,30/08/2017,Pay Costs,People Places & Serv Directorate,Acorn Recruitment Ltd,849753,643.57,Not Applicable,
Department for Business Energy and Industrial Strategy,Intellectual Property Office,11/08/2017,Pay Costs,Patent Directorate,Brook Street (UK) Ltd,30548753,439.99,Not Applicable,
Department for Business Energy and Industrial Strategy,Intellectual Property Office,11/08/2017,Pay Costs,Patent Directorate,Brook Street (UK) Ltd,30548753,596.29,Not Applicable,
Department for Business Energy and Industrial Strategy,Intellectual Property Office,11/08/2017,Pay Costs,Patent Directorate,Brook Street (UK) Ltd,30548753,458.89,Not Applicable,
Department for Business Energy and Industrial Strategy,Intellectual Property Office,11/08/2017,Pay Costs,Patent Directorate,Brook Street (UK) Ltd,30548753,480.73,Not Applicable,
Department for Business Energy and Industrial Strategy,Intellectual Property Office,11/08/2017,Pay Costs,Patent Directorate,Brook Street (UK) Ltd,30548753,1140.01,Not Applicable,
Department for Business Energy and Industrial Strategy,Intellectual Property Office,11/08/2017,Pay Costs,Patent Directorate,Brook Street (UK) Ltd,30548753,523.03,Not Applicable,
Department for Business Energy and Industrial Strategy,Intellectual Property Office,11/08/2017,Pay Costs,Patent Directorate,Brook Street (UK) Ltd,30548753,615.17,Not Applicable,
Department for Business Energy and Industrial Strategy,Intellectual Property Office,11/08/2017,Pay Costs,Patent Directorate,Brook Street (UK) Ltd,30548753,1012.12,Not Applicable,
Department for Business Energy and Industrial Strategy,Intellectual Property Office,11/08/2017,Pay Costs,Patent Directorate,Brook Street (UK) Ltd,30548753,1097.29,Not Applicable,
Department for Business Energy and Industrial Strategy,Intellectual Property Office,11/08/2017,Pay Costs,Patent Directorate,Brook Street (UK) Ltd,30548753,548.33,Not Applicable,
Department for Business Energy and Industrial Strategy,Intellectual Property Office,11/08/2017,Pay Costs,People Places & Serv Directorate,Brook Street (UK) Ltd,30548753,544.24,Not Applicable,
Department for Business Energy and Industrial Strategy,Intellectual Property Office,11/08/2017,Pay Costs,Patent Directorate,Brook Street (UK) Ltd,30548753,327.78,Not Applicable,
Department for Business Energy and Industrial Strategy,Intellectual Property Office,11/08/2017,Pay Costs,Patent Directorate,Brook Street (UK) Ltd,30548753,895.38,Not Applicable,
Department for Business Energy and Industrial Strategy,Intellectual Property Office,11/08/2017,Pay Costs,Patent Directorate,Brook Street (UK) Ltd,30548753,948.70,Not Applicable,
Department for Business Energy and Industrial Strategy,Intellectual Property Office,11/08/2017,Pay Costs,Patent Directorate,Brook Street (UK) Ltd,30548753,605.70,Not Applicable,
Department for Business Energy and Industrial Strategy,Intellectual Property Office,11/08/2017,Pay Costs,Patent Directorate,Brook Street (UK) Ltd,30548753,1050.59,Not Applicable,
Department for Business Energy and Industrial Strategy,Intellectual Property Office,11/08/2017,Pay Costs,Patent Directorate,Brook Street (UK) Ltd,30548753,484.56,Not Applicable,
Department for Business Energy and Industrial Strategy,Intellectual Property Office,11/08/2017,Pay Costs,Patent Directorate,Brook Street (UK) Ltd,30548753,1125.98,Not Applicable,
Department for Business Energy and Industrial Strategy,Intellectual Property Office,11/08/2017,Pay Costs,Patent Directorate,Brook Street (UK) Ltd,30548753,830.78,Not Applicable,
Department for Business Energy and Industrial Strategy,Intellectual Property Office,11/08/2017,Pay Costs,Patent Directorate,Brook Street (UK) Ltd,30548753,523.03,Not Applicable,
Department for Business Energy and Industrial Strategy,Intellectual Property Office,11/08/2017,Pay Costs,People Places & Serv Directorate,Brook Street (UK) Ltd,30548753,327.78,Not Applicable,
Department for Business Energy and Industrial Strategy,Intellectual Property Office,11/08/2017,Pay Costs,Patent Directorate,Brook Street (UK) Ltd,30548753,342.22,Not Applicable,
Department for Business Energy and Industrial Strategy,Intellectual Property Office,11/08/2017,Pay Costs,Patent Directorate,Brook Street (UK) Ltd,30548753,593.10,Not Applicable,
Department for Business Energy and Industrial Strategy,Intellectual Property Office,11/08/2017,Pay Costs,Patent Directorate,Brook Street (UK) Ltd,30548753,602.95,Not Applicable,
Department for Business Energy and Industrial Strategy,Intellectual Property Office,11/08/2017,Pay Costs,Patent Directorate,Brook Street (UK) Ltd,30548753,386.05,Not Applicable,
Department for Business Energy and Industrial Strategy,Intellectual Property Office,11/08/2017,Pay Costs,Patent Directorate,Brook Street (UK) Ltd,30548753,602.95,Not Applicable,
Department for Business Energy and Industrial Strategy,Intellectual Property Office,11/08/2017,Pay Costs,Patent Directorate,Brook Street (UK) Ltd,30548753,320.50,Not Applicable,
Department for Business Energy and Industrial Strategy,Intellectual Property Office,11/08/2017,Pay Costs,Patent Directorate,Brook Street (UK) Ltd,30548753,1077.26,Not Applicable,
Department for Business Energy and Industrial Strategy,Intellectual Property Office,09/08/2017,Pay Costs,Patent Directorate,Brook Street (UK) Ltd,30559296,668.77,Not Applicable,
Department for Business Energy and Industrial Strategy,Intellectual Property Office,09/08/2017,Pay Costs,Patent Directorate,Brook Street (UK) Ltd,30559297,596.29,Not Applicable,
Department for Business Energy and Industrial Strategy,Intellectual Property Office,09/08/2017,Pay Costs,Patent Directorate,Brook Street (UK) Ltd,30559298,596.29,Not Applicable,
Department for Business Energy and Industrial Strategy,Intellectual Property Office,18/08/2017,Pay Costs,Patent Directorate,Brook Street (UK) Ltd,30560468,653.40,Not Applicable,
Department for Business Energy and Industrial Strategy,Intellectual Property Office,18/08/2017,Pay Costs,Patent Directorate,Brook Street (UK) Ltd,30560468,1149.25,Not Applicable,
Department for Business Energy and Industrial Strategy,Intellectual Property Office,18/08/2017,Pay Costs,Patent Directorate,Brook Street (UK) Ltd,30560468,523.03,Not Applicable,
Department for Business Energy and Industrial Strategy,Intellectual Property Office,18/08/2017,Pay Costs,People Places & Serv Directorate,Brook Street (UK) Ltd,30560468,539.02,Not Applicable,
Department for Business Energy and Industrial Strategy,Intellectual Property Office,18/08/2017,Pay Costs,Patent Directorate,Brook Street (UK) Ltd,30560468,268.88,Not Applicable,
Department for Business Energy and Industrial Strategy,Intellectual Property Office,18/08/2017,Pay Costs,Patent Directorate,Brook Street (UK) Ltd,30560468,593.10,Not Applicable,
Department for Business Energy and Industrial Strategy,Intellectual Property Office,18/08/2017,Pay Costs,Patent Directorate,Brook Street (UK) Ltd,30560468,505.18,Not Applicable,
Department for Business Energy and Industrial Strategy,Intellectual Property Office,18/08/2017,Pay Costs,Patent Directorate,Brook Street (UK) Ltd,30560468,539.02,Not Applicable,
Department for Business Energy and Industrial Strategy,Intellectual Property Office,18/08/2017,Pay Costs,Trade Mark Directorate,Brook Street (UK) Ltd,30560468,593.10,Not Applicable,
Department for Business Energy and Industrial Strategy,Intellectual Property Office,18/08/2017,Pay Costs,Patent Directorate,Brook Street (UK) Ltd,30560468,480.73,Not Applicable,
Department for Business Energy and Industrial Strategy,Intellectual Property Office,18/08/2017,Pay Costs,Patent Directorate,Brook Street (UK) Ltd,30560468,320.50,Not Applicable,
Department for Business Energy and Industrial Strategy,Intellectual Property Office,18/08/2017,Pay Costs,Patent Directorate,Brook Street (UK) Ltd,30560468,1155.77,Not Applicable,
Department for Business Energy and Industrial Strategy,Intellectual Property Office,18/08/2017,Pay Costs,Patent Directorate,Brook Street (UK) Ltd,30560468,596.29,Not Applicable,
Department for Business Energy and Industrial Strategy,Intellectual Property Office,18/08/2017,Pay Costs,Patent Directorate,Brook Street (UK) Ltd,30560468,531.73,Not Applicable,
Department for Business Energy and Industrial Strategy,Intellectual Property Office,18/08/2017,Pay Costs,Patent Directorate,Brook Street (UK) Ltd,30560468,490.04,Not Applicable,
Department for Business Energy and Industrial Strategy,Intellectual Property Office,18/08/2017,Pay Costs,Patent Directorate,Brook Street (UK) Ltd,30560468,1233.15,Not Applicable,
Department for Business Energy and Industrial Strategy,Intellectual Property Office,18/08/2017,Pay Costs,Patent Directorate,Brook Street (UK) Ltd,30560468,523.03,Not Applicable,
Department for Business Energy and Industrial Strategy,Intellectual Property Office,18/08/2017,Pay Costs,Patent Directorate,Brook Street (UK) Ltd,30560468,615.17,Not Applicable,
Department for Business Energy and Industrial Strategy,Intellectual Property Office,18/08/2017,Pay Costs,Patent Directorate,Brook Street (UK) Ltd,30560468,717.02,Not Applicable,
Department for Business Energy and Industrial Strategy,Intellectual Property Office,18/08/2017,Pay Costs,Patent Directorate,Brook Street (UK) Ltd,30560468,1106.60,Not Applicable,
Department for Business Energy and Industrial Strategy,Intellectual Property Office,18/08/2017,Pay Costs,Patent Directorate,Brook Street (UK) Ltd,30560468,539.02,Not Applicable,
Department for Business Energy and Industrial Strategy,Intellectual Property Office,18/08/2017,Pay Costs,People Places & Serv Directorate,Brook Street (UK) Ltd,30560468,551.30,Not Applicable,
Department for Business Energy and Industrial Strategy,Intellectual Property Office,18/08/2017,Pay Costs,Patent Directorate,Brook Street (UK) Ltd,30560468,437.04,Not Applicable,
Department for Business Energy and Industrial Strategy,Intellectual Property Office,18/08/2017,Pay Costs,Patent Directorate,Brook Street (UK) Ltd,30560468,859.16,Not Applicable,
Department for Business Energy and Industrial Strategy,Intellectual Property Office,18/08/2017,Pay Costs,Patent Directorate,Brook Street (UK) Ltd,30560468,890.87,Not Applicable,
Department for Business Energy and Industrial Strategy,Intellectual Property Office,18/08/2017,Pay Costs,Patent Directorate,Brook Street (UK) Ltd,30560468,605.70,Not Applicable,
Department for Business Energy and Industrial Strategy,Intellectual Property Office,18/08/2017,Pay Costs,Patent Directorate,Brook Street (UK) Ltd,30560468,1153.16,Not Applicable,
Department for Business Energy and Industrial Strategy,Intellectual Property Office,18/08/2017,Pay Costs,Patent Directorate,Brook Street (UK) Ltd,30560468,484.56,Not Applicable,
Department for Business Energy and Industrial Strategy,Intellectual Property Office,11/08/2017,Pay Costs,Trade Mark Directorate,Brook Street (UK) Ltd,30570640,593.10,Not Applicable,
Department for Business Energy and Industrial Strategy,Intellectual Property Office,11/08/2017,Pay Costs,Trade Mark Directorate,Brook Street (UK) Ltd,30570641,665.58,Not Applicable,
Department for Business Energy and Industrial Strategy,Intellectual Property Office,24/08/2017,Pay Costs,Patent Directorate,Brook Street (UK) Ltd,30571753,5486.01,Not Applicable,
Department for Business Energy and Industrial Strategy,Intellectual Property Office,24/08/2017,Pay Costs,Patent Directorate,Brook Street (UK) Ltd,30571753,488.88,Not Applicable,
Department for Business Energy and Industrial Strategy,Intellectual Property Office,24/08/2017,Pay Costs,Patent Directorate,Brook Street (UK) Ltd,30571753,1735.07,Not Applicable,
Department for Business Energy and Industrial Strategy,Intellectual Property Office,24/08/2017,Pay Costs,Trade Mark Directorate,Brook Street (UK) Ltd,30571753,462.61,Not Applicable,
Department for Business Energy and Industrial Strategy,Intellectual Property Office,24/08/2017,Pay Costs,People Places & Serv Directorate,Brook Street (UK) Ltd,30571753,546.30,Not Applicable,
Department for Business Energy and Industrial Strategy,Intellectual Property Office,24/08/2017,Pay Costs,Patent Directorate,Brook Street (UK) Ltd,30571753,633.96,Not Applicable,
Department for Business Energy and Industrial Strategy,Intellectual Property Office,24/08/2017,Pay Costs,Patent Directorate,Brook Street (UK) Ltd,30571753,5815.94,Not Applicable,
Department for Business Energy and Industrial Strategy,Intellectual Property Office,24/08/2017,Pay Costs,Patent Directorate,Brook Street (UK) Ltd,30571753,456.29,Not Applicable,
Department for Business Energy and Industrial Strategy,Intellectual Property Office,24/08/2017,Pay Costs,People Places & Serv Directorate,Brook Street (UK) Ltd,30571753,558.37,Not Applicable,
Department for Business Energy and Industrial Strategy,Intellectual Property Office,24/08/2017,Pay Costs,Patent Directorate,Brook Street (UK) Ltd,30571753,1666.29,Not Applicable,
Department for Business Energy and Industrial Strategy,Intellectual Property Office,30/08/2017,Pay Costs,Patent Directorate,Brook Street (UK) Ltd,30584072,2575.84,Not Applicable,
Department for Business Energy and Industrial Strategy,Intellectual Property Office,30/08/2017,Pay Costs,Patent Directorate,Brook Street (UK) Ltd,30584072,513.32,Not Applicable,
Department for Business Energy and Industrial Strategy,Intellectual Property Office,30/08/2017,Pay Costs,Trade Mark Directorate,Brook Street (UK) Ltd,30584072,577.28,Not Applicable,
Department for Business Energy and Industrial Strategy,Intellectual Property Office,30/08/2017,Pay Costs,Patent Directorate,Brook Street (UK) Ltd,30584072,1141.97,Not Applicable,
Department for Business Energy and Industrial Strategy,Intellectual Property Office,30/08/2017,Pay Costs,People Places & Serv Directorate,Brook Street (UK) Ltd,30584072,539.02,Not Applicable,
Department for Business Energy and Industrial Strategy,Intellectual Property Office,30/08/2017,Pay Costs,Patent Directorate,Brook Street (UK) Ltd,30584072,5261.61,Not Applicable,
Department for Business Energy and Industrial Strategy,Intellectual Property Office,30/08/2017,Pay Costs,People Places & Serv Directorate,Brook Street (UK) Ltd,30584072,530.10,Not Applicable,
Department for Business Energy and Industrial Strategy,Intellectual Property Office,30/08/2017,Pay Costs,Patent Directorate,Brook Street (UK) Ltd,30584072,1971.84,Not Applicable,
Department for Business Energy and Industrial Strategy,Intellectual Property Office,30/08/2017,Pay Costs,Patent Directorate,Brook Street (UK) Ltd,30584072,550.40,Not Applicable,
Department for Business Energy and Industrial Strategy,Intellectual Property Office,30/08/2017,Pay Costs,Patent Directorate,Brook Street (UK) Ltd,30584072,2924.13,Not Applicable,
Department for Business Energy and Industrial Strategy,Intellectual Property Office,25/08/2017,Pay Costs,Patent Directorate,Brook Street (UK) Ltd,30594186,-717.02,Not Applicable,
Department for Business Energy and Industrial Strategy,Intellectual Property Office,25/08/2017,Pay Costs,Patent Directorate,Brook Street (UK) Ltd,30594449,830.09,Not Applicable,
Department for Business Energy and Industrial Strategy,Intellectual Property Office,29/08/2017,Pay Costs,Finance Directorate,Companies House,S0001924079,4390.48,Not Applicable,
Department for Business Energy and Industrial Strategy,Intellectual Property Office,02/08/2017,Pay Costs,People Places & Serv Directorate,C2W Support,33814,564.97,Not Applicable,
Department for Business Energy and Industrial Strategy,Intellectual Property Office,09/08/2017,Pay Costs,People Places & Serv Directorate,C2W Support,33819,1882.75,Not Applicable,
Department for Business Energy and Industrial Strategy,Intellectual Property Office,02/08/2017,Pay Costs,Copyright and Enforcement Directorate,Industry Trust for IP Awareness Ltd,10727,30000.00,Not Applicable,
Department for Business Energy and Industrial Strategy,Intellectual Property Office,22/08/2017,Pay Costs,Innovation Directorate,Driving Standards Agency,9300189219,640.00,Not Applicable,
Department for Business Energy and Industrial Strategy,Intellectual Property Office,04/08/2017,Postage & Delivery Costs,People Places & Serv Directorate,DHL International (UK) Ltd,BRS0623297,981.67,Not Applicable,
Department for Business Energy and Industrial Strategy,Intellectual Property Office,10/08/2017,Postage & Delivery Costs,People Places & Serv Directorate,DHL International (UK) Ltd,BRS0653324,1336.54,Not Applicable,
Department for Business Energy and Industrial Strategy,Intellectual Property Office,18/08/2017,Postage & Delivery Costs,People Places & Serv Directorate,DHL International (UK) Ltd,BRS0669603,2364.39,Not Applicable,
Department for Business Energy and Industrial Strategy,Intellectual Property Office,29/08/2017,Postage & Delivery Costs,People Places & Serv Directorate,DHL International (UK) Ltd,BRS0686726,2046.13,Not Applicable,
Department for Business Energy and Industrial Strategy,Intellectual Property Office,30/08/2017,Postage & Delivery Costs,People Places & Serv Directorate,DHL International (UK) Ltd,BRS0703887,1330.63,Not Applicable,
Department for Business Energy and Industrial Strategy,Intellectual Property Office,11/08/2017,Postage & Delivery Costs,People Places & Serv Directorate,Zenith,26719,1033.20,Not Applicable,
Department for Business Energy and Industrial Strategy,Intellectual Property Office,31/08/2017,Postage & Delivery Costs,People Places & Serv Directorate,Neopost Finance Ltd,N3026121-29AUG17,5000.00,Not Applicable,
Department for Business Energy and Industrial Strategy,Intellectual Property Office,17/08/2017,Postage & Delivery Costs,People Places & Serv Directorate,Neopost Finance Ltd,NE9000335-16AUG,10000.00,Not Applicable,
Department for Business Energy and Industrial Strategy,Intellectual Property Office,30/08/2017,Postage & Delivery Costs,People Places & Serv Directorate,Parcelforce Worldwide,9055014132,1675.18,Not Applicable,
Department for Business Energy and Industrial Strategy,Intellectual Property Office,01/08/2017,Postage & Delivery Costs,People Places & Serv Directorate,Royal Mail,9054857216,1619.90,Not Applicable,
Department for Business Energy and Industrial Strategy,Intellectual Property Office,17/08/2017,Postage & Delivery Costs,People Places & Serv Directorate,Royal Mail,9054944709,1639.21,Not Applicable,
Department for Business Energy and Industrial Strategy,Intellectual Property Office,31/08/2017,Postage & Delivery Costs,People Places & Serv Directorate,Royal Mail,9055023670,1698.81,Not Applicable,
Department for Business Energy and Industrial Strategy,Intellectual Property Office,08/08/2017,Postage & Delivery Costs,People Places & Serv Directorate,CitySprint (UK) Ltd,2237033,7405.31,Not Applicable,
Department for Business Energy and Industrial Strategy,Intellectual Property Office,08/08/2017,Postage & Delivery Costs,IT Directorate,Pluralsight,INV00968815,22799.94,Not Applicable,
Department for Business Energy and Industrial Strategy,Intellectual Property Office,14/08/2017,Prepayments,Trade Mark Directorate,City of London Police,4203731,384864.31,Not Applicable,
Department for Business Energy and Industrial Strategy,Intellectual Property Office,22/08/2017,Printing and Binding,Finance Directorate,Williams Lea Ltd,CHP-BIS-IPO17080,720.00,Not Applicable,
Department for Business Energy and Industrial Strategy,Intellectual Property Office,03/08/2017,Staff Costs,Patent Directorate,Computeraid Ltd,21293,678.00,Not Applicable,
Department for Business Energy and Industrial Strategy,Intellectual Property Office,04/08/2017,Staff Costs,People Places & Serv Directorate,Computeraid Ltd,21294,678.00,Not Applicable,
Department for Business Energy and Industrial Strategy,Intellectual Property Office,04/08/2017,Staff Costs,People Places & Serv Directorate,Computeraid Ltd,21295,678.00,Not Applicable,
Department for Business Energy and Industrial Strategy,Intellectual Property Office,04/08/2017,Staff Costs,Patent Directorate,Computeraid Ltd,21296,678.00,Not Applicable,
Department for Business Energy and Industrial Strategy,Intellectual Property Office,04/08/2017,Staff Costs,Patent Directorate,Computeraid Ltd,21297,678.00,Not Applicable,
Department for Business Energy and Industrial Strategy,Intellectual Property Office,08/08/2017,Staff Costs,People Places & Serv Directorate,Computeraid Ltd,21298,678.00,Not Applicable,
Department for Business Energy and Industrial Strategy,Intellectual Property Office,03/08/2017,Staff Costs,People Places & Serv Directorate,QA Ltd,ICE468069,1077.60,Not Applicable,
Department for Business Energy and Industrial Strategy,Intellectual Property Office,03/08/2017,Staff Costs,People Places & Serv Directorate,QA Ltd,ICE468070,1077.60,Not Applicable,
Department for Business Energy and Industrial Strategy,Intellectual Property Office,22/08/2017,Staff Costs,IT Directorate,QA Ltd,ISL142932,36000.00,Not Applicable,
Department for Business Energy and Industrial Strategy,Intellectual Property Office,30/08/2017,Staff Costs,People Places & Serv Directorate,Worth Consulting Ltd,1417,1194.00,Not Applicable,
Department for Business Energy and Industrial Strategy,Intellectual Property Office,11/08/2017,Staff Costs,Patent Directorate,IET Services Ltd,ROWLAND HUNT,3888.00,Not Applicable,
Department for Business Energy and Industrial Strategy,Intellectual Property Office,17/08/2017,Staff Costs,People Places & Serv Directorate,Sodexo Motivation Solutions UK Ltd,3342481,10789.33,Not Applicable,
Department for Business Energy and Industrial Strategy,Intellectual Property Office,16/08/2017,Staff Costs,People Places & Serv Directorate,Sodexo Motivation Solutions UK Ltd,3342490,8939.49,Not Applicable,
Department for Business Energy and Industrial Strategy,Intellectual Property Office,16/08/2017,Staff Costs,People Places & Serv Directorate,The Clive Davis Partnership Ltd.,CDSC-2733,1440.00,Not Applicable,
Department for Business Energy and Industrial Strategy,Intellectual Property Office,21/08/2017,Staff Costs,People Places & Serv Directorate,The Clive Davis Partnership Ltd.,CDSC-2734,1440.00,Not Applicable,
Department for Business Energy and Industrial Strategy,Intellectual Property Office,04/08/2017,Staff Costs,People Places & Serv Directorate,CPS Group (UK) Ltd,29272,7230.48,Not Applicable,
Department for Business Energy and Industrial Strategy,Intellectual Property Office,21/08/2017,Staff Costs,IT Directorate,Assist Knowledge Development Ltd,870,1554.00,Not Applicable,
Department for Business Energy and Industrial Strategy,Intellectual Property Office,29/08/2017,Staff Costs,International Policy Directorate,Language Services Direct Ltd,18600,857.66,Not Applicable,
Department for Business Energy and Industrial Strategy,Intellectual Property Office,01/08/2017,Staff Costs,Patent Directorate,Involve Me Training and Development Ltd,151,1800.00,Not Applicable,
Department for Business Energy and Industrial Strategy,Intellectual Property Office,02/08/2017,Staff Costs,IT Directorate,Responsiv Solutions Limited,RSL0320,15206.40,Not Applicable,
Department for Business Energy and Industrial Strategy,Intellectual Property Office,18/08/2017,Staff Costs,People Places & Serv Directorate,Leonard Cheshire Disability,RINVTP-00450853,11700.00,Not Applicable,
Department for Business Energy and Industrial Strategy,Intellectual Property Office,08/08/2017,Staff Costs,People Places & Serv Directorate,Linkedln Ireland,78110123376,3244.26,Not Applicable,
Department for Business Energy and Industrial Strategy,Intellectual Property Office,18/08/2017,Staff Costs,IT Directorate,Salford Profesional Development Ltd,PI024499,3420.00,Not Applicable,
Department for Business Energy and Industrial Strategy,Intellectual Property Office,21/08/2017,Staff Costs,People Places & Serv Directorate,UK Trade & Investment,6.2311E+11,14400.57,Not Applicable,
Department for Business Energy and Industrial Strategy,Intellectual Property Office,21/08/2017,Staff Costs,People Places & Serv Directorate,UK Trade & Investment,6.2312E+11,-14400.57,Not Applicable,
Department for Business Energy and Industrial Strategy,Intellectual Property Office,25/08/2017,Staff Costs,IT Directorate,Sheridan Strategic Services Limited,1418,2400.00,Not Applicable,
Department for Business Energy and Industrial Strategy,Intellectual Property Office,02/08/2017,Staff Costs,People Places & Serv Directorate,DANDAD Ltd,SIN003664,3600.00,Not Applicable,
Department for Business Energy and Industrial Strategy,Intellectual Property Office,21/08/2017,Staff Costs,People Places & Serv Directorate,OEE Consulting Ltd,53462,1500.00,Not Applicable,
Department for Business Energy and Industrial Strategy,Intellectual Property Office,31/08/2017,Staff Costs,Projects,Best Practice Training Ltd.,BPT-0000021,1434.00,Not Applicable,
Department for Business Energy and Industrial Strategy,Intellectual Property Office,09/08/2017,Stock,Trade Mark Directorate,Rieder and Partner,J799515,3060.00,Not Applicable,
Department for Business Energy and Industrial Strategy,Intellectual Property Office,16/08/2017,Stock,Trade Mark Directorate,Anderson Strathern LLP,D0005042,675.00,Not Applicable,
Department for Business Energy and Industrial Strategy,Intellectual Property Office,29/08/2017,Supporting UK Business,Innovation Directorate,Creation IP Ltd,IV1900,2600.00,Not Applicable,
Department for Business Energy and Industrial Strategy,Intellectual Property Office,22/08/2017,Supporting UK Business,Innovation Directorate,Greaves Brewster LLP,22731,2600.00,Not Applicable,
Department for Business Energy and Industrial Strategy,Intellectual Property Office,04/08/2017,Supporting UK Business,Innovation Directorate,Harrison Goddard Foote,446160,2600.00,Not Applicable,
Department for Business Energy and Industrial Strategy,Intellectual Property Office,17/08/2017,Supporting UK Business,Innovation Directorate,Withers &  Rogers LLP,764067RH,2600.00,Not Applicable,
Department for Business Energy and Industrial Strategy,Intellectual Property Office,29/08/2017,Supporting UK Business,Innovation Directorate,Alistair Hindle Associates,170826,2600.00,Not Applicable,
Department for Business Energy and Industrial Strategy,Intellectual Property Office,22/08/2017,Supporting UK Business,Innovation Directorate,Chapman IP Ltd,17108,2600.00,Not Applicable,
Department for Business Energy and Industrial Strategy,Intellectual Property Office,29/08/2017,Supporting UK Business,Innovation Directorate,ICIPIA Ltd,IPO021,2166.67,Not Applicable,
Department for Business Energy and Industrial Strategy,Intellectual Property Office,07/08/2017,Supporting UK Business,Innovation Directorate,Lincoln IP,7344,2600.00,Not Applicable,
Department for Business Energy and Industrial Strategy,Intellectual Property Office,16/08/2017,Supporting UK Business,Innovation Directorate,Lincoln IP,7387,2600.00,Not Applicable,
Department for Business Energy and Industrial Strategy,Intellectual Property Office,22/08/2017,Supporting UK Business,Innovation Directorate,Lincoln IP,7420,2600.00,Not Applicable,
Department for Business Energy and Industrial Strategy,Intellectual Property Office,09/08/2017,Supporting UK Business,Innovation Directorate,Marks & Clerk LLP,7085628,2600.00,Not Applicable,
Department for Business Energy and Industrial Strategy,Intellectual Property Office,23/08/2017,Supporting UK Business,Innovation Directorate,Marks & Clerk LLP,7086621,2600.00,Not Applicable,
Department for Business Energy and Industrial Strategy,Intellectual Property Office,29/08/2017,Supporting UK Business,Innovation Directorate,Marks & Clerk LLP,7086635,2600.00,Not Applicable,
Department for Business Energy and Industrial Strategy,Intellectual Property Office,09/08/2017,Supporting UK Business,International Policy Directorate,FOREIGN & COMMONWEALTH OFFICE,1096898,3140.46,Not Applicable,
Department for Business Energy and Industrial Strategy,Intellectual Property Office,01/08/2017,Supporting UK Business,International Policy Directorate,FOREIGN & COMMONWEALTH OFFICE,1097251,23007.63,Not Applicable,
Department for Business Energy and Industrial Strategy,Intellectual Property Office,09/08/2017,Supporting UK Business,International Policy Directorate,FOREIGN & COMMONWEALTH OFFICE,1097505,4281.10,Not Applicable,
Department for Business Energy and Industrial Strategy,Intellectual Property Office,24/08/2017,Supporting UK Business,International Policy Directorate,FOREIGN & COMMONWEALTH OFFICE,1097663,907.07,Not Applicable,
Department for Business Energy and Industrial Strategy,Intellectual Property Office,23/08/2017,Supporting UK Business,International Policy Directorate,FOREIGN & COMMONWEALTH OFFICE,1097889,5649.24,Not Applicable,
Department for Business Energy and Industrial Strategy,Intellectual Property Office,07/08/2017,Supporting UK Business,Innovation Directorate,LAWRIE INTELLECTUAL PROPERTY,110014,2600.00,Not Applicable,
Department for Business Energy and Industrial Strategy,Intellectual Property Office,07/08/2017,Supporting UK Business,Innovation Directorate,LAWRIE INTELLECTUAL PROPERTY,110049,2600.00,Not Applicable,
Department for Business Energy and Industrial Strategy,Intellectual Property Office,29/08/2017,Supporting UK Business,Innovation Directorate,LAWRIE INTELLECTUAL PROPERTY,110296,2600.00,Not Applicable,
Department for Business Energy and Industrial Strategy,Intellectual Property Office,07/08/2017,Supporting UK Business,Innovation Directorate,CAMERON INTELLECTUAL PROPERTY LTD,2538-17,2600.00,Not Applicable,
Department for Business Energy and Industrial Strategy,Intellectual Property Office,09/08/2017,Supporting UK Business,Innovation Directorate,DAN ANTHONY PRESENTATIONS LTD,176,1600.00,Not Applicable,
Department for Business Energy and Industrial Strategy,Intellectual Property Office,23/08/2017,Supporting UK Business,Innovation Directorate,Thorntons,927790,2600.00,Not Applicable,
Department for Business Energy and Industrial Strategy,Intellectual Property Office,04/08/2017,Supporting UK Business,Innovation Directorate,MacRoberts LLP,I-17-5668,2600.00,Not Applicable,
Department for Business Energy and Industrial Strategy,Intellectual Property Office,07/08/2017,Supporting UK Business,Innovation Directorate,Coller IP Management Ltd,9618,2600.00,Not Applicable,
Department for Business Energy and Industrial Strategy,Intellectual Property Office,04/08/2017,Supporting UK Business,Innovation Directorate,Burness Paull LLP,161719140,2520.00,Not Applicable,
Department for Business Energy and Industrial Strategy,Intellectual Property Office,04/08/2017,Supporting UK Business,Innovation Directorate,HARPER MACLEOD LLP,D900648,2520.00,Not Applicable,
Department for Business Energy and Industrial Strategy,Intellectual Property Office,04/08/2017,Supporting UK Business,Innovation Directorate,HARPER MACLEOD LLP,D900648CR,-2520.00,Not Applicable,
Department for Business Energy and Industrial Strategy,Intellectual Property Office,15/08/2017,Supporting UK Business,Innovation Directorate,HARPER MACLEOD LLP,D911897,2520.00,Not Applicable,
Department for Business Energy and Industrial Strategy,Intellectual Property Office,29/08/2017,Supporting UK Business,Innovation Directorate,Scintilla,INV-00986,2600.00,Not Applicable,
Department for Business Energy and Industrial Strategy,Intellectual Property Office,09/08/2017,Supporting UK Business,Innovation Directorate,Scintilla,INV-01032,2600.00,Not Applicable,
Department for Business Energy and Industrial Strategy,Intellectual Property Office,09/08/2017,Supporting UK Business,Innovation Directorate,Scintilla,INV-01036,2600.00,Not Applicable,
Department for Business Energy and Industrial Strategy,Intellectual Property Office,09/08/2017,Supporting UK Business,Innovation Directorate,MBM Commercial LLP,10-14414,2600.00,Not Applicable,
Department for Business Energy and Industrial Strategy,Intellectual Property Office,16/08/2017,Supporting UK Business,Innovation Directorate,IS Media Ltd (t/a People for Research),6871,552.00,Not Applicable,
Department for Business Energy and Industrial Strategy,Intellectual Property Office,29/08/2017,Supporting UK Business,Innovation Directorate,IS Media Ltd (t/a People for Research),6915,1110.00,Not Applicable,
Department for Business Energy and Industrial Strategy,Intellectual Property Office,07/08/2017,Supporting UK Business,Innovation Directorate,Appleyard Lees,128072,2600.00,Not Applicable,
Department for Business Energy and Industrial Strategy,Intellectual Property Office,04/08/2017,Supporting UK Business,Innovation Directorate,Ouzman IP Limited,287,2600.00,Not Applicable,
Department for Business Energy and Industrial Strategy,Intellectual Property Office,14/08/2017,Supporting UK Business,Innovation Directorate,Ouzman IP Limited,296,2600.00,Not Applicable,
Department for Business Energy and Industrial Strategy,Intellectual Property Office,29/08/2017,Supporting UK Business,Innovation Directorate,Bridle Intellectual Property Limited,133-008,2600.00,Not Applicable,
Department for Business Energy and Industrial Strategy,Intellectual Property Office,09/08/2017,Supporting UK Business,Innovation Directorate,Innovi Business Growth Ltd,14031,2600.00,Not Applicable,
Department for Business Energy and Industrial Strategy,Intellectual Property Office,15/08/2017,Supporting UK Business,Innovation Directorate,Mathys & Squire IP,319752,2600.00,Not Applicable,
Department for Business Energy and Industrial Strategy,Intellectual Property Office,09/08/2017,Supporting UK Business,Innovation Directorate,Nigel Brooks Chartered Patent Agent,25173,2600.00,Not Applicable,
Department for Business Energy and Industrial Strategy,Intellectual Property Office,07/08/2017,Supporting UK Business,Innovation Directorate,Keltie LLP,119732,2600.00,Not Applicable,
Department for Business Energy and Industrial Strategy,Intellectual Property Office,07/08/2017,Supporting UK Business,Innovation Directorate,Novagraaf,N170455-9379283,2600.00,Not Applicable,
Department for Business Energy and Industrial Strategy,Intellectual Property Office,23/08/2017,Supporting UK Business,Innovation Directorate,Gill Jennings & Every LLP,341109,2600.00,Not Applicable,
Department for Business Energy and Industrial Strategy,Intellectual Property Office,15/08/2017,Supporting UK Business,Innovation Directorate,HFG Limited,G236459ABLLHE-CR,-2600.00,Not Applicable,
Department for Business Energy and Industrial Strategy,Intellectual Property Office,07/08/2017,Supporting UK Business,Innovation Directorate,Lewis Silkin LLP,455616,2600.00,Not Applicable,
Department for Business Energy and Industrial Strategy,Intellectual Property Office,09/08/2017,Supporting UK Business,Innovation Directorate,Clarion Solicitors Limited,120724,2600.00,Not Applicable,
Department for Business Energy and Industrial Strategy,Intellectual Property Office,22/08/2017,Supporting UK Business,Innovation Directorate,Fry Heath Spence,77737,2600.00,Not Applicable,
Department for Business Energy and Industrial Strategy,Intellectual Property Office,18/08/2017,Telecoms,IT Directorate,British  Telecom,GP00002104M0480X,3056.23,Not Applicable,
Department for Business Energy and Industrial Strategy,Intellectual Property Office,18/08/2017,Telecoms,IT Directorate,British  Telecom,Q022CC-19JUL17,3000.00,Not Applicable,
Department for Business Energy and Industrial Strategy,Intellectual Property Office,08/08/2017,Telecoms,IT Directorate,ZEN INTERNET LIMITED,23206146,5917.19,Not Applicable,
Department for Business Energy and Industrial Strategy,Intellectual Property Office,08/08/2017,Telecoms,IT Directorate,ZEN INTERNET LIMITED,23416319,2943.25,Not Applicable,
Department for Business Energy and Industrial Strategy,Intellectual Property Office,15/08/2017,Telecoms,IT Directorate,VIRGIN MEDIA,409092201-10AUG,537.22,Not Applicable,
Department for Business Energy and Industrial Strategy,Intellectual Property Office,08/08/2017,Telecoms,IT Directorate,VIRGIN MEDIA,917218-087-01AUG,559.12,Not Applicable,
Department for Business Energy and Industrial Strategy,Intellectual Property Office,09/08/2017,Telecoms,IT Directorate,THREE,AGL06136598,771.46,Not Applicable,
Department for Business Energy and Industrial Strategy,Intellectual Property Office,22/08/2017,Telecoms,IT Directorate,EE Ltd,1262942588,6633.27,Not Applicable,
Department for Business Energy and Industrial Strategy,Intellectual Property Office,07/08/2017,Telecoms,IT Directorate,Personal expenses,UK10-082017-2194,3322.08,Not Applicable,
Department for Business Energy and Industrial Strategy,Intellectual Property Office,21/08/2017,Telecoms,Projects,British Telecommunications PLC,556801,2545.50,Not Applicable,
Department for Business Energy and Industrial Strategy,Intellectual Property Office,07/08/2017,Travel & Subsistence,International Policy Directorate,Personal expenses,OS000000418,500.45,Not Applicable,
Department for Business Energy and Industrial Strategy,Intellectual Property Office,04/08/2017,Travel & Subsistence,IT Directorate,Veezu Ltd T/A Dragon Taxis (Newport),3468,74.82,Not Applicable,
Department for Business Energy and Industrial Strategy,Intellectual Property Office,04/08/2017,Travel & Subsistence,Trade Mark Directorate,Veezu Ltd T/A Dragon Taxis (Newport),3468,24.42,Not Applicable,
Department for Business Energy and Industrial Strategy,Intellectual Property Office,04/08/2017,Travel & Subsistence,Innovation Directorate,Veezu Ltd T/A Dragon Taxis (Newport),3468,31.20,Not Applicable,
Department for Business Energy and Industrial Strategy,Intellectual Property Office,04/08/2017,Travel & Subsistence,Innovation Directorate,Veezu Ltd T/A Dragon Taxis (Newport),3468,15.60,Not Applicable,
Department for Business Energy and Industrial Strategy,Intellectual Property Office,04/08/2017,Travel & Subsistence,Copyright and Enforcement Directorate,Veezu Ltd T/A Dragon Taxis (Newport),3468,79.86,Not Applicable,
Department for Business Energy and Industrial Strategy,Intellectual Property Office,04/08/2017,Travel & Subsistence,People Places & Serv Directorate,Veezu Ltd T/A Dragon Taxis (Newport),3468,15.60,Not Applicable,
Department for Business Energy and Industrial Strategy,Intellectual Property Office,04/08/2017,Travel & Subsistence,People Places & Serv Directorate,Veezu Ltd T/A Dragon Taxis (Newport),3468,15.60,Not Applicable,
Department for Business Energy and Industrial Strategy,Intellectual Property Office,04/08/2017,Travel & Subsistence,Patent Directorate,Veezu Ltd T/A Dragon Taxis (Newport),3468,7.80,Not Applicable,
Department for Business Energy and Industrial Strategy,Intellectual Property Office,04/08/2017,Travel & Subsistence,IT Directorate,Veezu Ltd T/A Dragon Taxis (Newport),3468,7.80,Not Applicable,
Department for Business Energy and Industrial Strategy,Intellectual Property Office,04/08/2017,Travel & Subsistence,Projects,Veezu Ltd T/A Dragon Taxis (Newport),3468,15.96,Not Applicable,
Department for Business Energy and Industrial Strategy,Intellectual Property Office,04/08/2017,Travel & Subsistence,IT Directorate,Veezu Ltd T/A Dragon Taxis (Newport),3468,7.80,Not Applicable,
Department for Business Energy and Industrial Strategy,Intellectual Property Office,04/08/2017,Travel & Subsistence,Innovation Directorate,Veezu Ltd T/A Dragon Taxis (Newport),3468,32.40,Not Applicable,
Department for Business Energy and Industrial Strategy,Intellectual Property Office,04/08/2017,Travel & Subsistence,Innovation Directorate,Veezu Ltd T/A Dragon Taxis (Newport),3468,166.80,Not Applicable,
Department for Business Energy and Industrial Strategy,Intellectual Property Office,04/08/2017,Travel & Subsistence,Copyright and Enforcement Directorate,Veezu Ltd T/A Dragon Taxis (Newport),3468,39.00,Not Applicable,
Department for Business Energy and Industrial Strategy,Intellectual Property Office,04/08/2017,Travel & Subsistence,People Places & Serv Directorate,Veezu Ltd T/A Dragon Taxis (Newport),3468,42.06,Not Applicable,
Department for Business Energy and Industrial Strategy,Intellectual Property Office,04/08/2017,Travel & Subsistence,International Policy Directorate,Veezu Ltd T/A Dragon Taxis (Newport),3468,363.66,Not Applicable,
Department for Business Energy and Industrial Strategy,Intellectual Property Office,04/08/2017,Travel & Subsistence,Patent Directorate,Veezu Ltd T/A Dragon Taxis (Newport),3468,7.80,Not Applicable,
Department for Business Energy and Industrial Strategy,Intellectual Property Office,24/08/2017,Perpetual Licences,IT Directorate,Amazon UK Retail,H57720170826tgfxizujt,32.99,Not Applicable,
Department for Business Energy and Industrial Strategy,Intellectual Property Office,15/08/2017,Perpetual Licences,IT Directorate,Amazon UK Marketplace,H57720170817epanqspcw,32.65,Not Applicable,
Department for Business Energy and Industrial Strategy,Intellectual Property Office,14/08/2017,Software Maintenance,IT Directorate,Morecomputers.Com,H57720170816tzvsjlvoj,394.96,Not Applicable,
Department for Business Energy and Industrial Strategy,Intellectual Property Office,12/08/2017,Software Maintenance,IT Directorate,Amazon UK Marketplace,H57720170815rkgndqjoh,24.73,Not Applicable,
Department for Business Energy and Industrial Strategy,Intellectual Property Office,07/08/2017,Software Maintenance,IT Directorate,Amazon UK Retail,H57720170809detllwrkp,347.88,Not Applicable,
Department for Business Energy and Industrial Strategy,Intellectual Property Office,03/08/2017,Network and infrastructure H/W,IT Directorate,Currys Online,H57720170805isteocnbg,741.98,Not Applicable,
Department for Business Energy and Industrial Strategy,Intellectual Property Office,03/08/2017,Network and infrastructure H/W,IT Directorate,Amazon UK Retail,H57720170805saimlmrgg,34.99,Not Applicable,
Department for Business Energy and Industrial Strategy,Intellectual Property Office,02/08/2017,Perpetual Licences,IT Directorate,Websitepulse.Com,H57720170805lewyrdlfh,74.91,Not Applicable,
Department for Business Energy and Industrial Strategy,Intellectual Property Office,01/08/2017,Network and infrastructure H/W,IT Directorate,Comms Exp,H57720170803rsrwnwpap,910.80,Not Applicable,
Department for Business Energy and Industrial Strategy,Intellectual Property Office,24/08/2017,Network and infrastructure H/W,IT Directorate,Www.Fruitycables.Co.Uk,H57720170826yaamisvvk,347.94,Not Applicable,
Department for Business Energy and Industrial Strategy,Intellectual Property Office,30/08/2017,Network and infrastructure H/W,IT Directorate,Amazon UK Marketplace,H57720170901xnfifhtem,7.98,Not Applicable,
Department for Business Energy and Industrial Strategy,Intellectual Property Office,16/08/2017,Perpetual Licences,IT Directorate,Meetingzone Ltd,H57720170818hdsremsph,413.36,Not Applicable,
Department for Business Energy and Industrial Strategy,Intellectual Property Office,01/08/2017,Network and infrastructure H/W,IT Directorate,Comms Exp,H57720170803serbruxpw,910.80,Not Applicable,
Department for Business Energy and Industrial Strategy,Intellectual Property Office,12/08/2017,Perpetual Licences,IT Directorate,Www.Aha.Io 1-888-926-2240,H57720170816hvwqyfvgk,394.13,Not Applicable,
Department for Business Energy and Industrial Strategy,Intellectual Property Office,10/08/2017,Seminars and Confereces,IT Directorate,Rookery Manor,H57720170812rdejtyjao,75.00,Not Applicable,
Department for Business Energy and Industrial Strategy,Intellectual Property Office,08/08/2017,Seminars and Confereces,IT Directorate,Eb *pa Network Exeter,H57720170810korofsbcb,149.00,Not Applicable,
Department for Business Energy and Industrial Strategy,Intellectual Property Office,04/08/2017,Seminars and Confereces,IT Directorate,The Angel Hotel,H57720170808jfxwwttxh,480.00,Not Applicable,
Department for Business Energy and Industrial Strategy,Intellectual Property Office,03/08/2017,Books,Innovation Directorate,Www.Informa.Com,H57720170805rsrfnppln,33.59,Not Applicable,
Department for Business Energy and Industrial Strategy,Intellectual Property Office,08/08/2017,Career Development Services,Innovation Directorate,Market Research So,H57720170810ctlyxsrcs,174.00,Not Applicable,
Department for Business Energy and Industrial Strategy,Intellectual Property Office,08/08/2017,Career Development Services,Innovation Directorate,Market Research So,H57720170810usbpxocqb,174.00,Not Applicable,
Department for Business Energy and Industrial Strategy,Intellectual Property Office,09/08/2017,Advertising Distribution,Innovation Directorate,Office For National St,H57720170811sdwzkpaxi,7.85,Not Applicable,
Department for Business Energy and Industrial Strategy,Intellectual Property Office,08/08/2017,Advertising Distribution,Innovation Directorate,Office For National St,H57720170810uaxhprwem,8.25,Not Applicable,
Department for Business Energy and Industrial Strategy,Intellectual Property Office,17/08/2017,Advertising Distribution,Innovation Directorate,Twitonomy.Com,H57720170819mfldjilhy,15.22,Not Applicable,
Department for Business Energy and Industrial Strategy,Intellectual Property Office,25/08/2017,Advertising Distribution,Innovation Directorate,Amazon UK Marketplace,H57720170829afvrryhyq,19.49,Not Applicable,
Department for Business Energy and Industrial Strategy,Intellectual Property Office,27/08/2017,Advertising Distribution,Innovation Directorate,Amazon UK Marketplace,H57720170829cbwfjrrfy,601.48,Not Applicable,
Department for Business Energy and Industrial Strategy,Intellectual Property Office,25/08/2017,Advertising Distribution,Innovation Directorate,Amazon UK Marketplace,H57720170829dryxslhxh,8.18,Not Applicable,
Department for Business Energy and Industrial Strategy,Intellectual Property Office,25/08/2017,Advertising Distribution,Innovation Directorate,Amazon UK Marketplace,H57720170829fhxfpsdgn,26.99,Not Applicable,
Department for Business Energy and Industrial Strategy,Intellectual Property Office,21/08/2017,Office Stationery,Finance Directorate,Xma Ltd,H57720170823isurwndsb,272.42,Not Applicable,
Department for Business Energy and Industrial Strategy,Intellectual Property Office,21/08/2017,Office Stationery,Finance Directorate,Xma Ltd,H57720170823wobebufhp,319.92,Not Applicable,
Department for Business Energy and Industrial Strategy,Intellectual Property Office,17/08/2017,Office Stationery,Finance Directorate,Amazon UK Marketplace,H57720170819oegnozwdh,7.28,Not Applicable,
Department for Business Energy and Industrial Strategy,Intellectual Property Office,15/08/2017,Office Stationery,Finance Directorate,Wp-Stamps Direct L,H57720170817nartjkdlg,15.47,Not Applicable,
Department for Business Energy and Industrial Strategy,Intellectual Property Office,08/08/2017,Office Stationery,Finance Directorate,Xma Ltd,H57720170810xieptfboa,27.58,Not Applicable,
Department for Business Energy and Industrial Strategy,Intellectual Property Office,04/08/2017,Office Stationery,Finance Directorate,Xma Ltd,H57720170808otxgoreml,377.95,Not Applicable,
Department for Business Energy and Industrial Strategy,Intellectual Property Office,04/08/2017,Office Stationery,Finance Directorate,Cartridge Save,H57720170808ejttbgfrl,35.20,Not Applicable,
Department for Business Energy and Industrial Strategy,Intellectual Property Office,03/08/2017,Office Stationery,Finance Directorate,Xma Ltd,H57720170805psflmmueq,159.96,Not Applicable,
Department for Business Energy and Industrial Strategy,Intellectual Property Office,15/08/2017,Office Stationery,Finance Directorate,Hobby Craft Ltd,H57720170817tnwqdpori,22.00,Not Applicable,
Department for Business Energy and Industrial Strategy,Intellectual Property Office,01/08/2017,Seminars and Confereces,People Places & Serv Directorate,Coveritlive Scribbl Cov,H57720170803hlkqtbnds,38.25,Not Applicable,
Department for Business Energy and Industrial Strategy,Intellectual Property Office,30/08/2017,Career Development Services,People Places & Serv Directorate,Subway,H57720170901rmtjaarkz,54.00,Not Applicable,
Department for Business Energy and Industrial Strategy,Intellectual Property Office,24/08/2017,Career Development Services,People Places & Serv Directorate,Ticketsource Ltd,H57720170826hvjntkhmj,27.50,Not Applicable,
Department for Business Energy and Industrial Strategy,Intellectual Property Office,22/08/2017,Career Development Services,People Places & Serv Directorate,Ticketsource Ltd,H57720170824hvumbhqwk,121.90,Not Applicable,
Department for Business Energy and Industrial Strategy,Intellectual Property Office,18/08/2017,Other,People Places & Serv Directorate,Paypal,H57720170822zodajwlad,29.50,Not Applicable,
Department for Business Energy and Industrial Strategy,Intellectual Property Office,09/08/2017,Office Stationery,People Places & Serv Directorate,Www.Theedgesystems.Co.,H57720170811adlrersvi,1030.20,Not Applicable,
Department for Business Energy and Industrial Strategy,Intellectual Property Office,09/08/2017,Office Stationery,People Places & Serv Directorate,Don Ruffles Ltd,H57720170811vegbcvpcf,1162.80,Not Applicable,
Department for Business Energy and Industrial Strategy,Intellectual Property Office,04/08/2017,Office Stationery,People Places & Serv Directorate,Www.Toolstation.Com,H57720170808fwntdiikp,59.92,Not Applicable,
Department for Business Energy and Industrial Strategy,Intellectual Property Office,23/08/2017,Office Stationery,People Places & Serv Directorate,Amazon.Co.Uk,H57720170826vdbdjqxwp,27.17,Not Applicable,
Department for Business Energy and Industrial Strategy,Intellectual Property Office,23/08/2017,Office Stationery,People Places & Serv Directorate,Amazon UK Marketplace,H57720170825ovxyikxkk,40.75,Not Applicable,
Department for Business Energy and Industrial Strategy,Intellectual Property Office,23/08/2017,Office Stationery,People Places & Serv Directorate,Amazon UK Marketplace,H57720170825zqubgylxk,40.75,Not Applicable,
Department for Business Energy and Industrial Strategy,Intellectual Property Office,18/08/2017,Office Stationery,People Places & Serv Directorate,Amazon UK Marketplace,H57720170822wwsgvqzjp,30.74,Not Applicable,
Department for Business Energy and Industrial Strategy,Intellectual Property Office,16/08/2017,Office Stationery,People Places & Serv Directorate,Paypal,H57720170818rziiqpeau,89.30,Not Applicable,
Department for Business Energy and Industrial Strategy,Intellectual Property Office,15/08/2017,Office Stationery,People Places & Serv Directorate,Amazon UK Retail,H57720170817pvqybttkp,37.20,Not Applicable,
Department for Business Energy and Industrial Strategy,Intellectual Property Office,14/08/2017,Office Stationery,People Places & Serv Directorate,Ring O Roses,H57720170816udfquvhsf,80.00,Not Applicable,
Department for Business Energy and Industrial Strategy,Intellectual Property Office,16/08/2017,Office Stationery,People Places & Serv Directorate,Fireprotect,H57720170818yfspmqfpp,196.34,Not Applicable,
Department for Business Energy and Industrial Strategy,Intellectual Property Office,03/08/2017,Office Stationery,People Places & Serv Directorate,The Colour Centre,H57720170805rgvwmlwgq,59.98,Not Applicable,
Department for Business Energy and Industrial Strategy,Intellectual Property Office,02/08/2017,Office Stationery,People Places & Serv Directorate,Amazon UK Marketplace,H57720170804rcegtwdtz,39.92,Not Applicable,
Department for Business Energy and Industrial Strategy,Intellectual Property Office,17/08/2017,Office Stationery,People Places & Serv Directorate,Paypal,H57720170819weujwnkfo,588.00,Not Applicable,
Department for Business Energy and Industrial Strategy,Intellectual Property Office,15/08/2017,Office Stationery,People Places & Serv Directorate,Amazon UK Retail,H57720170817hyyrgmnbf,19.10,Not Applicable,
Department for Business Energy and Industrial Strategy,Intellectual Property Office,10/08/2017,Office Stationery,People Places & Serv Directorate,Tg Howell,H57720170812jjfmoqolr,58.71,Not Applicable,
Department for Business Energy and Industrial Strategy,Intellectual Property Office,31/07/2017,Office Stationery,People Places & Serv Directorate,Screwfix Direct,H57720170802tubivknoo,44.96,Not Applicable,
Department for Business Energy and Industrial Strategy,Intellectual Property Office,02/08/2017,Entertainment,People Places & Serv Directorate,Www.Intecoffice.Co.Uk,H57720170804yysvjxyfk,27.05,Not Applicable,
Department for Business Energy and Industrial Strategy,Intellectual Property Office,18/08/2017,Books,People Places & Serv Directorate,Wp-Apmg-Bb,H57720170822kstxuvruv,206.05,Not Applicable,
Department for Business Energy and Industrial Strategy,Intellectual Property Office,03/08/2017,Career Development Services,People Places & Serv Directorate,Eb *introduction To Mo,H57720170805nmfmwxybw,37.76,Not Applicable,
Department for Business Energy and Industrial Strategy,Intellectual Property Office,25/08/2017,Office Stationery,People Places & Serv Directorate,Amazon UK Marketplace,H57720170829fhxfpsdgn,5.00,Not Applicable,
Department for Business Energy and Industrial Strategy,Intellectual Property Office,23/08/2017,Office Stationery,People Places & Serv Directorate,Amazon UK Marketplace,H57720170825xvishkmxr,13.20,Not Applicable,
Department for Business Energy and Industrial Strategy,Intellectual Property Office,09/08/2017,Steering Board,People Places & Serv Directorate,Charles Barrett Florist,H57720170811xosulybgh,46.00,Not Applicable,
Department for Business Energy and Industrial Strategy,Intellectual Property Office,02/08/2017,Steering Board,People Places & Serv Directorate,Sainsburys Superma,H57720170804tufpseinb,10.10,Not Applicable,
Department for Business Energy and Industrial Strategy,Intellectual Property Office,10/08/2017,Seminars and Confereces,People Places & Serv Directorate,Baker Ross Ltd,H57720170812bgdbfrhaq,143.95,Not Applicable,
Department for Business Energy and Industrial Strategy,Intellectual Property Office,16/08/2017,Seminars and Confereces,People Places & Serv Directorate,Przcharge.Prezi.Com,H57720170818obulbplwn,15.60,Not Applicable,
Department for Business Energy and Industrial Strategy,Intellectual Property Office,29/08/2017,Career Development Services,People Places & Serv Directorate,Subway,H57720170831qjdyndalm,72.00,Not Applicable,
Department for Business Energy and Industrial Strategy,Intellectual Property Office,22/08/2017,Career Development Services,People Places & Serv Directorate,Www.Officestationery.,H57720170824yhgrgptbd,120.10,Not Applicable,
Department for Business Energy and Industrial Strategy,Intellectual Property Office,03/08/2017,Minor Works-Goods,People Places & Serv Directorate,Howdens - Newport D920,H57720170805qsoqquxwe,1015.74,Not Applicable,
Department for Business Energy and Industrial Strategy,Intellectual Property Office,20/08/2017,Minor Works-Goods,People Places & Serv Directorate,Amazon UK Retail,H57720170822mzbbjdhrp,69.65,Not Applicable,
Department for Business Energy and Industrial Strategy,Intellectual Property Office,05/08/2017,Minor Works-Goods,People Places & Serv Directorate,Amazon UK Marketplace,H57720170808eefalcknp,53.41,Not Applicable,
Department for Business Energy and Industrial Strategy,Intellectual Property Office,04/08/2017,Minor Works-Goods,People Places & Serv Directorate,Amazon UK Marketplace,H57720170808oglqarmss,8.98,Not Applicable,
Department for Business Energy and Industrial Strategy,Intellectual Property Office,31/07/2017,Minor Works-Goods,People Places & Serv Directorate,Amazon UK Marketplace,H57720170802jhgfrexlh,147.00,Not Applicable,
Department for Business Energy and Industrial Strategy,Intellectual Property Office,24/08/2017,Minor Works-Goods,People Places & Serv Directorate,Screwfix Direct,H57720170826vdyicqdfq,47.99,Not Applicable,
Department for Business Energy and Industrial Strategy,Intellectual Property Office,22/08/2017,Minor Works-Goods,People Places & Serv Directorate,Amazon UK Marketplace,H57720170824ufcyqnnhd,44.97,Not Applicable,
Department for Business Energy and Industrial Strategy,Intellectual Property Office,21/08/2017,Minor Works-Goods,People Places & Serv Directorate,Screwfix Direct,H57720170823ccreqifwk,110.36,Not Applicable,
Department for Business Energy and Industrial Strategy,Intellectual Property Office,08/08/2017,Minor Works-Goods,People Places & Serv Directorate,D Brash & Sons Ltd,H57720170810faltsnsca,264.00,Not Applicable,
Department for Business Energy and Industrial Strategy,Intellectual Property Office,14/08/2017,Entertainment,International Policy Directorate,Hr Palaces Ent Ltd,H57720170817unqnyhlcs,54.94,Not Applicable,
Department for Business Energy and Industrial Strategy,Intellectual Property Office,14/08/2017,Entertainment,International Policy Directorate,Skr*abebooks.Uk 43d2qc,H57720170816uftrywbrp,31.40,Not Applicable,
Department for Business Energy and Industrial Strategy,Intellectual Property Office,04/08/2017,Entertainment,International Policy Directorate,Rock Insurance,H57720170808yjjqdcmet,-30.43,Not Applicable,
Department for Business Energy and Industrial Strategy,Intellectual Property Office,01/08/2017,T&S UK,International Policy Directorate,Scottish Citylink Coache,H57720170804qxkclfuue,23.20,Not Applicable,
Department for Business Energy and Industrial Strategy,Intellectual Property Office,31/07/2017,Entertainment,International Policy Directorate,Amazon Prime,H57720170802koghjbeqz,-7.99,Not Applicable,
Department for Business Energy and Industrial Strategy,Intellectual Property Office,31/07/2017,Entertainment,International Policy Directorate,Amazon Prime,H57720170802gyliqfwob,7.99,Not Applicable,
Department for Business Energy and Industrial Strategy,Intellectual Property Office,31/07/2017,Entertainment,International Policy Directorate,Amazon UK Retail,H57720170802ywaikacut,3.50,Not Applicable,
Department for Business Energy and Industrial Strategy,Intellectual Property Office,22/08/2017,International Co-operation,International Policy Directorate,Firecracker,H57720170824dycfsbkip,100.00,Not Applicable,
Department for Business Energy and Industrial Strategy,Intellectual Property Office,04/08/2017,Books,Patent Directorate,Stationery Office Book,H57720170808notgqwkwo,72.00,Not Applicable,
Department for Business Energy and Industrial Strategy,Intellectual Property Office,25/08/2017,Overseas Patent Specifications,Patent Directorate,Wiley Article Pdf,H57720170829jelhhnumk,56.99,Not Applicable,
Department for Business Energy and Industrial Strategy,Intellectual Property Office,25/08/2017,Overseas Patent Specifications,Patent Directorate,Aacr Journals,H57720170829goxhgnmsy,28.17,Not Applicable,
Department for Business Energy and Industrial Strategy,Intellectual Property Office,15/08/2017,T&S UK,Patent Directorate,Eb *pa Network Exeter,H57720170817hjegkztbw,447.00,Not Applicable,
Department for Business Energy and Industrial Strategy,Intellectual Property Office,31/07/2017,Career Development Services,Patent Directorate,Paypal,H57720170803nvolrkxpv,305.05,Not Applicable,
Department for Business Energy and Industrial Strategy,Intellectual Property Office,30/08/2017,T&S UK,Patent Directorate,Wp-Institute Of Ph,H57720170901djtejqdjl,66.00,Not Applicable,
Department for Business Energy and Industrial Strategy,Intellectual Property Office,30/08/2017,T&S UK,Patent Directorate,Wp-Institute Of Ph,H57720170901voyqzeboc,66.00,Not Applicable,
Department for Business Energy and Industrial Strategy,Intellectual Property Office,30/08/2017,T&S UK,Patent Directorate,Wp-Institute Of Ph,H57720170901howqokvpf,66.00,Not Applicable,
Department for Business Energy and Industrial Strategy,Intellectual Property Office,03/08/2017,Career Development Services,Patent Directorate,Aapg International,H57720170808lixkbdxdj,545.49,Not Applicable,
Department for Business Energy and Industrial Strategy,Intellectual Property Office,02/08/2017,Career Development Services,Patent Directorate,Aapg International,H57720170805corqvnycd,541.79,Not Applicable,
Department for Business Energy and Industrial Strategy,Intellectual Property Office,02/08/2017,Career Development Services,Patent Directorate,Aapg International,H57720170805dpkfahtup,541.79,Not Applicable,
Department for Business Energy and Industrial Strategy,Intellectual Property Office,02/08/2017,Career Development Services,Patent Directorate,Cobalt Health,H57720170804ewccknnjc,667.50,Not Applicable,
Department for Business Energy and Industrial Strategy,Intellectual Property Office,03/08/2017,Books Newspaper Pub(central),Patent Directorate,Rbi Qss Subs,H57720170805njszkokni,348.00,Not Applicable,
Department for Business Energy and Industrial Strategy,Intellectual Property Office,16/08/2017,Overseas Patent Specifications,Patent Directorate,Ccc/rightslink,H57720170818npyhyrawe,-60.37,Not Applicable,
Department for Business Energy and Industrial Strategy,Intellectual Property Office,10/08/2017,Overseas Patent Specifications,Patent Directorate,Ccc/rightslink,H57720170815bmuqneapj,60.37,Not Applicable,
Department for Business Energy and Industrial Strategy,Intellectual Property Office,11/08/2017,Overseas Patent Specifications,Patent Directorate,Paypal,H57720170815zbatoyunc,7.98,Not Applicable,
Department for Business Energy and Industrial Strategy,Intellectual Property Office,08/08/2017,Overseas Patent Specifications,Patent Directorate,Www.Springer.Com,H57720170811jwpxhbdra,23.94,Not Applicable,
Department for Business Energy and Industrial Strategy,Intellectual Property Office,01/08/2017,Overseas Patent Specifications,Patent Directorate,Rei,H57720170803btidzcxjb,39.30,Not Applicable,
Department for Business Energy and Industrial Strategy,Intellectual Property Office,18/08/2017,Career Development Services,Projects,Www.Apm.Org.Uk,H57720170822iowqewimx,130.00,Not Applicable,
Department for Business Energy and Industrial Strategy,Intellectual Property Office,16/08/2017,Career Development Services,Projects,Act*coaching At Work L,H57720170818anfowktnq,167.00,Not Applicable,
Department for Business Energy and Industrial Strategy,Intellectual Property Office,30/08/2017,Network and infrastructure H/W,Trade Mark Directorate,Amazon UK Marketplace,H57720170901bsdetddob,7.36,Not Applicable,
